Workbook

Sheet Pricing Annexure
C2: BID NUMBER | D2: RW10392309/21
C3: BID DESCRIPTION | D3: SUPPLY & DELIVERY OF INSTRUMENTATION AND AUTOMATION EQUIPMENT SPARES
C4: BIDDER NAME
C7: DELIVERABLES (DESCRIPTION) | D7: QTY (A) | E7: UNIT OF MEASURE | F7: RATE (B) | G7: Total (A x B)
C8: Vereeniging
C9: VEGA EQUIPMENT
B10: 1 | C10: VegaPuls31 Radar Level Part No.: RA-222 229 | D10: 20 | E10: NO | G10: =F10*D10 -> 0
B11: 2 | C11: VegaPuls C21 Part No.: RA-222 22M | D11: 80 | E11: NO | G11: =F11*D11 -> 0
B12: 3 | C12: VegaPuls64 – Part No.: PS64.RWCORELAXBXCCHXKMXXX (elD: ZC4126959) | D12: 20 | E12: NO | G12: 0
B13: 4 | C13: Vegapuls61 WL Part No.: PSWL61.XXBXCHKAX | D13: 10 | E13: NO | G13: 0
B14: 5 | C14: Vegascan 693 Part No.: SCAN693.XXE | D14: 10 | E14: NO | G14: 0
B15: 6 | C15: VEGASON 61 Model: 61XXAGHKMXX; Part No.: 1326690/001 | D15: 10 | E15: NO | G15: 0
B16: 7 | C16: VegaBAR52 0-25Bar Pressure TX Part No.: 1751818/001 | D16: 10 | E16: NO | G16: 0
B17: 8 | C17: VegaMET 391 Controller MET391.XXHXX Part No.: 2053013/001 | D17: 10 | E17: NO | G17: 0
B18: 9 | C18: VegaPULSE WL 61 Radar Level 15m Part No.: 2560934/1 | D18: 10 | E18: NO | G18: 0
B19: 10 | C19: VegaSON62 ProfibusPA Level Tx 0.4-8m Part No.: 2051554/001 | D19: 10 | E19: NO | G19: 0
B20: 11 | C20: VEGASON62 – SON62.XXAGPKMXX | D20: 10 | E20: NO | G20: 0
C21: ACTUATORS
C22: AUMA ACTUATORS
B23: 12 | C23: Auma Actuator Profibus Interface Card Model: AM-E/A-BUS-PBD-STD | D23: 30 | E23: NO | G23: =F23*D23 -> 0
B24: 13 | C24: Auma Actuator Profibus Cards Part No.: Z023.241A/06-03 | D24: 30 | E24: NO | G24: 0
B25: 14 | C25: Auma Actuator – Profibus Card Part No.: Z023.241/01 | D25: 30 | E25: NO | G25: 0
B26: 15 | C26: Auma Actuator - Optic Fibre Cards Part No.: Z023.241/01-04 | D26: 30 | E26: NO | G26: 0
B27: 16 | C27: Auma Actuator – Matic AM Logic Board Part No.: Z013.718D/01 | D27: 30 | E27: NO | G27: 0
B28: 17 | C28: Auma Actuator - 24VDC Interface Card Part No.: Z009.636B/03 | D28: 30 | E28: NO | G28: 0
C30: EMG ACTUATORS
B31: 18 | C31: EMG Actuator - Profibus Cards Part No.: 23435100567 | D31: 20 | E31: NO | G31: =F31*D31 -> 0
B32: 19 | C32: EMG Actuator Card DMC-26 | D32: 20 | E32: NO | G32: 0
C34: BURKERT ACTUATORS
B35: 20 | C35: Burkert Actuators ID | D35: 40 | E35: NO | G35: =F35*D35 -> 0
B36: 21 | C36: Burkert Actuators Complete ID 226463 | D36: 40 | E36: NO | G36: 0
B37: 22 | C37: Burkett Solenoid Valves 24VDC Part No.: 00131421 | D37: 40 | E37: NO | G37: 0
B38: 23 | C38: Burkert Actuator 225195 240V 90 DEG 35Nm | D38: 40 | E38: NO | G38: 0
B39: 24 | C39: Burkert 6519 H 8.0 G1/4 PN 2-8Bar 24VDC 2W Moore Solenoid | D39: 40 | E39: NO | G39: 0
B40: 25 | C40: Burket 6519 W 6.0 FLNSCH PN 2-8Bar 24VDC 2W Moore Solenoid | D40: 40 | E40: NO | G40: 0
B41: 26 | C41: Burkett Solenoid Diaphragm Valve 6519-0013421 | D41: 40 | E41: NO | G41: 0
B42: 27 | C42: Burkett Inline Flowmeters | D42: 20 | E42: NO | G42: 0
B43: 28 | C43: Burkett 6213A10.0 NBR 24VDC Solenoid Valve Part No.: 00125653 | D43: 40 | E43: NO | G43: 0
B44: 29 | C44: Burkett Actuator 3003 24VAC/DC | D44: 40 | E44: NO | G44: 0
B45: 30 | C45: Burkett Actuator / Valve 8804 Part No.: 00226462 | D45: 40 | E45: NO | G45: 0
B46: 31 | C46: Burkett Pneumatic Valve 24VDC Part No.: 00131421 | D46: 40 | E46: NO | G46: 0
C48: NOAH ACTUATOR
B49: 32 | C49: Noah Actuator NA-019 220V Actuator | D49: 3 | E49: NO | G49: =F49*D49 -> 0
B50: 33 | C50: Noah Actuator SA005L 220V Actuator | D50: 3 | E50: NO | G50: 0
C52: PRESSURE TRANSMITTER
C53: WIKA
B54: 34 | C54: Wika Pressure Transmitters & Pressure Gauge C/W Chemical Seal Range: 0-10Bar | D54: 30 | E54: NO | G54: =F54*D54 -> 0
B55: 35 | C55: Wika Pressure Transmitters LS-10 Part No.: 14067747 | D55: 20 | E55: NO | G55: 0
B56: 36 | C56: Pressure Gauge C/W Chemical Seal Range: 0 – 1600kPa Dial Size: 100mm Stainless Steel inner Chemical Seal - Teflon Seal (Chlorine) ½” Entry | D56: 20 | E56: NO | G56: 0
B57: 37 | C57: Manocont Movement Pressure Gauge, All Stainless Steel, ½” BSP Bottom Connection. Range: 0-1000kPa, Fitted To 316L T-Piece, Complete With Transmitter & XWD6001 Chemical Seal, PTFE Coating Of Wetted Parts, For Chlorine Application – Including PTFE Protection Foil For Diaphragm | D57: 30 | E57: NO | G57: 0
B58: 38 | C58: Ifm Pressure Transducer PA3023 PA-025-RBR14_A-ZVG | D58: 10 | E58: NO | G58: 0
B59: 39 | C59: Ifm Pressure Switch 10 bar Part No.: 7007 | D59: 10 | E59: NO | G59: 0
B60: 40 | C60: Ifm Pressure Switch 25 bar PA3024 | D60: 10 | E60: NO | G60: 0
B61: 41 | C61: Instrotech 900 Transmitter 1707729 | D61: 10 | E61: NO | G61: 0
B62: 42 | C62: Genspec GS4200 Pressure Transmitter 0-16Bar | D62: 20 | E62: NO | G62: 0
C63: PEPPERL & FUCHS
B64: 43 | D64: 100 | E64: NO | G64: =F64*D64 -> 0
B66: 44 | D66: 100 | E66: NO | G66: 0
B69: 45 | D69: 100 | E69: NO | G69: 0
B72: 46 | C72: Switch-Tek Mini Float Switch PVDF Part No.: LH25-5201 | D72: 20 | E72: NO | G72: =F72*D72 -> 0
B73: 47 | C73: DPM temperature controller 4003 1303793 | D73: 15 | E73: NO | G73: 0
B74: 48 | C74: ERO Electronic Controller Model: PKC 611252300 | D74: 15 | E74: NO | G74: 0
B75: 49 | C75: RTD PT100 6mm x 210mm | D75: 30 | E75: NO | G75: 0
B76: 50 | D76: 30 | G76: 0
B78: 51 | C78: Swift RTD SHE 62841 316/SS/FAB/150mm | D78: 30 | E78: NO | G78: =F78*D78 -> 0
B79: 52 | C79: 2 way solenoid valve 2W-025-08 | D79: 30 | E79: NO | G79: 0
B80: 53 | C80: Tecfluid SC250 Flow Switch Part No.: LOM09ATEX2087X | D80: 15 | E80: NO | G80: 0
B81: 54 | C81: Tecfluid ADI15/BD Flow Switch | D81: 15 | E81: NO | G81: 0
B82: 55 | C82: IFM PA3023 Pressure sensor 0-150Bar PA-025-RBR14-A-ZVG/US//V | D82: 15 | E82: NO | G82: 0
B83: 56 | C83: IFM PN7007 Pressure sensor 0-10Bar | D83: 10 | E83: NO | G83: 0
B84: 57 | C84: Krohne Carbon Dioxide Flow meter Part No.: 011081744.001 | D84: 2 | E84: NO | G84: 0
B85: 58 | C85: Afriso RTD 0380-14 | D85: 10 | E85: NO | G85: 0
B86: 59 | C86: Idec Relay Type RR2P-U 26340 | D86: 3 | E86: NO | G86: 0
B87: 60 | C87: Pressure Gauge -100 – 300kpa ½” 049529 PBBF105504.WB5BC01 | D87: 10 | E87: NO | G87: 0
B88: 61 | C88: Pressure Gauge 0-1600kpa ½” PBBF10SS04WC3HC01 | D88: 10 | E88: NO | G88: 0
B89: 62 | C89: Pressure Gauge C/W Chemical Seal -100 – 300 kpa | D89: 10 | E89: NO | G89: 0
B90: 63 | C90: Pressure Gauge C/W Chemical Seal 0 – 4000 kpa | D90: 10 | E90: NO | G90: 0
B91: 64 | C91: Posiflex Positioner Type 368.00.164 | D91: 10 | E91: NO | G91: 0
B92: 65 | C92: SSD Rapier 510-300-5-0-310.0.0.0.00 Lime Plant Vibration drives | D92: 10 | E92: NO | G92: 0
B93: 66 | C93: Unite Electric Chemical Sealed Pressure Switch Part No.: H100-702 | D93: 10 | E93: NO | G93: 0
B94: 67 | C94: Kinetrol Actuators GU9-9NU Type 074-100 | D94: 15 | E94: NO | G94: 0
B95: 68 | C95: Kinetrol Actuator Type 074-104 ISON | D95: 15 | E95: NO | G95: 0
B96: 69 | C96: EL-O-MATIC F20 PosiFlex Electro/Pneumatic Positioner 368.00.164 | D96: 10 | E96: NO | G96: 0
C98: Monitran Vibration Equipment
B99: 70 | C99: Monitran Vibration Sensor MTN-1185M8 Part No.: MONMTN1185-006 | D99: 15 | E99: NO | G99: =F99*D99 -> 0
B100: 71 | C100: Monitran Vibration Sensor Cables 5m Part No.: MONMTNCA137-001 | D100: 15 | E100: NO | G100: 0
C101: Barksdale Equipment | G101: R-
B102: 72 | C102: Barksdale Pressure Transmitter 5W2000 (10-15Bar) Part No.: 0428-127 | D102: 20 | E102: NO
B103: 73 | C103: Barksdale Flow Switch UQS7-170 Part No.: 0728-017 | D103: 20 | E103: NO | G103: 0
B104: 74 | C104: Barksdale Pressure sensor 0-15Bar Part No.: 0428-127 | D104: 20 | E104: NO | G104: 0
C105: SIEMENS
B106: 75 | C106: Siemens LOGO! Power Part No.: 6EP1331-ISH03 Input: 220VAC Output: 24VDC 1.3A | D106: 15 | E106: NO | G106: 0
B107: 76 | C107: Siemens SITRANS P Pressure Transmitter Profibus PA 0 - 100Bar Part No.: MF4034-1EA00-1AB7-Z | D107: 10 | E107: NO | G107: 0
B108: 77 | C108: Siemens SITRANS P Pressure Transmitter Profibus PA 0 - 16Bar Part No.: MF4033-1DA00-1AB6-Z | D108: 10 | E108: NO | G108: 0
B109: 78 | C109: Siemens SITRANS T3K PT100 - PA Converter Part No.: 7NG3213-0NN00 | D109: 10 | E109: NO | G109: 0
B110: 79 | C110: Siemens SITRANS TH400 PT100 - PA Converter Part No.: 7NG3214-0NN00 | D110: 10 | E110: NO | G110: 0
B111: 80 | C111: Siemens UXA-96285 230V Potentiometer | D111: 10 | E111: NO | G111: 0
B112: 81 | C112: Siemens Pressure Transmitter Sitrans P 7MF034-1EA00-1AB7-2 | D112: 10 | E112: NO | G112: 0
B113: 82 | C113: Siemens Pointek CIS 200 flow switch UA0089 | D113: 10 | E113: NO | G113: 0
C114: GRUNDFOS (Chlorine System)
B115: 83 | C115: Grundfos Vacuum Regulator Maintenance Kits Part No.: 96688766 | D115: 10 | E115: NO | G115: 0
C116: CL2/148/120Kg/H/FH
C117: 553-1084
B118: 84 | C118: Grundfos Regulators Maintenance Kits Part No.: 96688767 | D118: 10 | E118: NO | G118: =F118*D118 -> 0
B119: 85 | C119: Grundfos Chlorinator Rotameter Part No.: 96680945 | D119: 10 | E119: NO | G119: 0
B120: 86 | C120: Grundfos Differential Pressure Regulator Part No.: 96708603 | D120: 10 | E120: NO | G120: 0
B121: 87 | C121: Grundfos Dosing Pump Model No.: DDI 6010AR PVC/V/GS-31B16F | D121: 10 | E121: NO | G121: 0
B122: 88 | C122: Grundfos Chlorine Leak Detectors Sensors 553-1011 Part No.: 91835823 | D122: 100 | E122: NO | G122: 0
B123: 89 | C123: Grundfos Differential Regulator Part No.: 96708604 | D123: 10 | E123: NO | G123: 0
B124: 90 | C124: Grundfos CONEX DIS-G-P-CCA-X-W-G Chlorine Detector Type 307 Part No.: 96734178 | D124: 10 | E124: NO | G124: 0
B125: 91 | C125: Grundfos VGS-148 Chlorine Pressure Regulator Part No.: 96681286 | D125: 10 | E125: NO | G125: 0
B126: 92 | C126: Grundfos Vacuum Regulator and attachments VGS148-120 Part No.:96681286 | D126: 10 | E126: NO | G126: 0
B127: 93 | C127: Grundfos Smart Digital XL AR-PVC/V/C-F-31U3FG | D127: 10 | E127: NO | G127: 0
B128: 94 | C128: Grundfos Dosing Pump Maintenance Kit Part No.: 96688971 | D128: 10 | E128: NO | G128: 0
B129: 95 | C129: Grundfos Dosing Pump DDI 150-4APF-PVC-L/V/G/-31B2B2F Part No.: 96717300 | D129: 10 | E129: NO | G129: 0
B130: 96 | C130: Grundfos Dosing Pump Pressure Switch DDI 150-4PVC/FM Part No.: 96688971 | D130: 10 | E130: NO | G130: 0
B131: 97 | C131: Grundfos Vacuum Pressure Gauge Part No.: 96680904 | D131: 10 | E131: NO | G131: 0
B132: 98 | C132: Grundfos Vacuum Pressure Gauge Range: -10 – 0 Part No.: 96708738 | D132: 10 | E132: NO | G132: 0
B133: 99 | C133: Grundfos Chlorinator GS145 Selector Switch | D133: 10 | E133: NO | G133: 0
C134: ENDRESS & HAUSER
B135: 100 | C135: Endress & Hauser Prosonic FDU Part No.: 80-RG2A | D135: 10 | E135: NO | G135: 0
B136: 101 | C136: Endress & Hauser FMU 90 Cover P3+Display Field housing PC Part No.: 52025699 Commodity Code: 39269097 | D136: 10 | E136: NO | G136: 0
B137: 102 | C137: Endress & Hauser Level Transmitter Prosonic S FMU90 Part No.: FMU 90-R21CA213AA1A | D137: 10 | E137: NO | G137: 0
B138: 103 | C138: Endress & Hauser FDU91 Prosonic S Part No.: FDU91-RG2AA | D138: 10 | E138: NO | G138: 0
B139: 104 | C139: Endress & Hauser iTemp PT100 - PA Converter Part No.: TMT84-1009/101 | D139: 10 | E139: NO | G139: 0
B140: 105 | C140: Endress & Hauser Prosonic T FMU Part No.: FMU 230E-AA31 | D140: 10 | E140: NO | G140: 0
B141: 106 | C141: Endress & Hauser Cerabar s TX PMP71-AND1U11GAAA | D141: 10 | E141: NO | G141: 0
C142: WALLACE & TIERNAN
B143: 107 | C143: Wallace+Tiernan Sensor; Part No.: UXA 86376 (0-10ppm) | D143: 20 | E143: NO | G143: 0
B144: 108 | C144: Wallace+Tiernan Vacuum Switch; Part No.: AAB 6291-40Kg | D144: 10 | E144: NO | G144: 0
B145: 109 | C145: Wallace+Tiernan Rotameter; Part No.: AAB 2623-40Kg | D145: 10 | E145: NO | G145: 0
B146: 110 | C146: Wallace+Tiernan Clamping Screw; Part No.: W3T169846 | D146: 10 | E146: NO | G146: 0
B147: 111 | C147: Wallace+Tiernan GSKT Seal; Part No.: W2T376757 | D147: 10 | E147: NO | G147: 0
B148: 112 | C148: Wallace+Tiernan Shaft Seal V10K; Part No.: W2T635517 | D148: 10 | E148: NO | G148: 0
B149: 113 | C149: Wallace+Tiernan Holder V-Notch; Part No.: W2T12072 | D149: 10 | E149: NO | G149: 0
B150: 114 | C150: Wallace+Tiernan GSKT Seal; Part No.: W2T12130 | D150: 10 | E150: NO | G150: 0
B151: 115 | C151: Wallace+Tiernan V-Notch Plug; Part No.: W3T171244 | D151: 10 | E151: NO | G151: 0
B152: 116 | C152: Wallace+Tiernan FTG ORFC; Part No.: W2T12149 | D152: 10 | E152: NO | G152: 0
B153: 117 | C153: Wallace+Tiernan Stem Plug; Part No.: W2T19250 | D153: 10 | E153: NO | G153: 0
B154: 118 | C154: Wallace+Tiernan Vacuum Regulator; Part No.: W3T357496 | D154: 10 | E154: NO | G154: 0
B155: 119 | C155: Wallace+Tiernan Heater; Part No.: W2T11756 | D155: 10 | E155: NO | G155: 0
B156: 120 | C156: Wallace+Tiernan AAA 8167 GMS (4-20) Part No.: 231240/18 | D156: 10 | E156: NO | G156: 0
C157: ANALYSERS
B158: 121 | C158: HACH SC200 Controllers Part No.: LXV404.99.00502 | D158: 20 | E158: NO | G158: 0
B159: 122 | C159: HACH SC200 General purpose analyser Part No.: LXV404.99.00552 | D159: 80 | E159: NO | G159: 0
B160: 123 | C160: HACH SC1000 Turbidity Meter; Part No.: LXV 445.99.10112 | D160: 40 | E160: NO | G160: 0
B161: 124 | C161: HACH SC1000 Turbidity Meter; Part No.: LXV400.99.1E082 | D161: 20 | E161: NO | G161: 0
B162: 125 | C162: HACH SC1000 Display; Part No.: LXV 402.99.00002 | D162: 20 | E162: NO | G162: 0
B163: 126 | C163: HACH UltraTurb TU5300 Part No.: LXV445.99.10112 | D163: 80 | E163: NO | G163: 0
B164: 127 | C164: HACH pH Probe Part No.: DPD1R1 | D164: 40 | E164: NO | G164: 0
B165: 128 | C165: HACH Lamp Assembly 1720D/E Part No.: 1895000 | D165: 20 | E165: NO | G165: 0
B166: 129 | C166: HACH Photocell Assembly 1720D Replacement Kit Part No.: 5218000 | D166: 20 | E166: NO | G166: 0
B167: 130 | C167: HACH Circuit Board Assembly 1720E with Detector Part No.: 6012000 | D167: 20 | E167: NO | G167: 0
B168: 131 | C168: HACH Turb Solution 4000NTU 1000ml Part No.: | D168: 10 | E168: NO | G168: 0
B169: 132 | C169: HACH Chlorine Analyzer CL17 Maintenance Kits Part No.: 5444300 | D169: 20 | E169: NO | G169: 0
B170: 133 | C170: HACH SpecCheck Color STD DPD Part No.: 28933-00 | D170: 100 | E170: NO | G170: 0
B171: 134 | C171: HACH Chlorine Analyzer CL-17 Reagents Part No.: 2556900 | D171: 100 | E171: NO | G171: 0
B172: 135 | C172: HACH Chlorine Analyzer CL 17; Part No.: 5440001 | D172: 15 | E172: NO | G172: 0
C173: SWAN
B174: 136 | D174: 10 | E174: NO | G174: 0
B175: 137 | C175: Swan pH Probes Part No.: A-87.120.200 | D175: 30 | E175: NO | G175: 0
B176: 138 | C176: Swan Shurecon P Conductivity Probe Part No.: A-87.342.110 | D176: 30 | E176: NO | G176: 0
B177: 139 | C177: Swan Swansensor Cable Sensor Cable and Screws Part No.: A-88.131.120 | D177: 30 | E177: NO | G177: 0
B178: 140 | C178: Swan Swansensor PT 1000 Temperature probe Part No.: A-87.030.200 | D178: 30 | E178: NO | G178: 0
B179: 141 | C179: Swan Solicon4 AMI-2 Part No.:23.421.200 100-240VAC | D179: 10 | E179: NO | G179: 0
B180: 142 | C180: Swan Flow Cell M-Flow 10-3PG Part No.:4-83.416.330 | D180: 20 | E180: NO | G180: 0
C181: YOKOGAWA
B182: 143 | C182: Yokogawa SC21C-AGP26 Combined pH Sensor non flow heavy duty | D182: 20 | E182: NO | G182: 0
C183: AUTOMATION SPARES(HMI &SCADA)
C184: ALLEN BRADLEY
B185: 144 | C185: AB 1606-XL 120DR 5A Power supply | D185: 6 | E185: NO | G185: =F185*D185 -> 0
B186: 145 | C186: AB 1756-DNB D Devicenet Communication module Part No.: PN-36089 | D186: 4 | E186: NO | G186: 0
B187: 146 | C187: AB 1794-ADN B Devicenet Flex IO 24V adapter Part No.: PN-90463 | D187: 4 | E187: NO | G187: 0
B188: 147 | C188: AB Logix5000 Battery assembly Part No.:1756-BA2 | D188: 6 | E188: NO | G188: 0
B189: 148 | C189: AB 24 Digital input cards for Controllogix PLC | D189: 12 | E189: NO | G189: 0
B190: 149 | C190: AB 2-20 mA Analog input cards Controllogix PLC | D190: 5 | E190: NO | G190: 0
B191: 150 | C191: AB 24V DC Digital Output cards Controllogix PLC | D191: 12 | E191: NO | G191: 0
C193: BECKHOFF HMI
B194: 151 | C194: BeckHoff C9900-U330 HMI BACKUP POWER SUPPLY | D194: 70 | E194: NO | G194: =F194*D194 -> 0
B195: 152 | C195: Beckhoff C9900-U33 HMI UPS 24V 120m ohms | D195: 70 | E195: NO | G195: 0
B196: 153 | C196: Beckhoff CP2219-0010 HMI 19'PCT v04 2.5"320GB SATA (The exact type to be determined after the design of Opstats project as the HMI type may change) | D196: 20 | E196: NO | G196: 0
B197: 154 | C197: Beckhoff 19’’ Touch screen | D197: 60 | E197: NO | G197: 0
B198: 155 | C198: Beckhoff industrial CPU for InTouch 2017 Run time (The exact type to be determined after the design of Opstats project as the HMI type may change) | D198: 60 | E198: NO | G198: 0
C200: PEPPERL & FUCHS
B201: 156 | C201: Pepperl and Fuchs Profibus PA Part No.: KLD2-PL-1PA | D201: 30 | E201: NO | G201: =F201*D201 -> 0
B202: 157 | C202: Pepperl+Fuchs HD2-FBPS-1.25.360 Fieldbus power supply Part No.: 189516 | D202: 30 | E202: NO | G202: 0
B203: 158 | C203: Pepperl+Fuchs KFD2-BR-1.PA.1500 Profibus PA to DP converter Part No.: 277830 | D203: 15 | E203: NO | G203: 0
B204: 159 | C204: Pepperl+Fuchs MB-FG-GTR1 FieldConnex Part No.: 276874 | D204: 30 | E204: NO | G204: 0
B205: 160 | C205: Pepperl+Fuchs NBB20-U1-UU Proximity switch Part No.: 238884 | D205: 15 | E205: NO | G205: 0
B206: 161 | C206: Pepperl+Fuchs TMT181L PT100 - PA Converter Part No.: 206518 | D206: 50 | E206: NO | G206: 0
B207: 162 | C207: Peppler+Fuchs Varikont NCN20+U1+U | D207: 10 | E207: NO | G207: 0
C208: MISCELLANEOUS ACCESSORIES
B209: 163 | C209: Hirschman OZD Profi 12M G12 Fibre Optic Module Profibus | D209: 20 | E209: NO | G209: 0
B210: 164 | C210: Fiber Optic Patch Leads (1m Long) Part No.: SC-TO-ST | D210: 60 | E210: NO | G210: 0
B211: 165 | C211: Fiber Optic Patch Leads (1m Long) Part No.: SC-TO-SC | D211: 60 | E211: NO | G211: 0
B212: 166 | C212: Ethernet Cable CAT6 Armored Part No.: CAT6 | D212: 1000 | E212: meters | G212: 0
B213: 167 | C213: Prosoft 5204-DFNT-PDPMV1 ProLinx Profibus DPV1 Master | D213: 2 | E213: NO | G213: 0
B214: 168 | C214: Prosoft PTQ-PDPMV1 - (To be replaced by the Schneider PRM module) | D214: 30 | E214: NO | G214: 0
B215: 169 | C215: Calog 9000S Universal Programable Transmitter | D215: 2 | E215: NO | G215: 0
C216: WEIDMULLER EQUIPMENT
... 667 more rows

Sheet GROUP 1 - LEVEL & PRESSUR EQUIP
C2: BID NUMBER | D2: RW10392309/21
C3: BID DESCRIPTION | D3: SUPPLY & DELIVERY OF INSTRUMENTATION AND AUTOMATION EQUIPMENT SPARES
C4: BIDDER NAME
C7: DELIVERABLES (DESCRIPTION) | D7: QTY (A) | E7: UNIT OF MEASURE | F7: RATE (B) | G7: Total (A x B)
C8: LEVEL EQUIPMENT
C9: VEGA EQUIPMENT
B10: 1 | C10: VegaPuls31 Radar Level Part No.: RA-222 229 | D10: 20 | E10: NO | G10: =F10*D10 -> 0
B11: =B10+1 -> 2 | C11: VegaPuls C21 Part No.: RA-222 22M | D11: 80 | E11: NO | G11: =F11*D11 -> 0
B12: =B11+1 -> 3 | C12: VegaPuls64 – Part No.: PS64.RWCORELAXBXCCHXKMXXX (elD: ZC4126959) | D12: 20 | E12: NO | G12: 0
B13: 4 | C13: Vegapuls61 WL Part No.: PSWL61.XXBXCHKAX | D13: 10 | E13: NO | G13: 0
B14: 5 | C14: Vegascan 693 Part No.: SCAN693.XXE | D14: 10 | E14: NO | G14: 0
B15: 6 | C15: VEGASON 61 Model: 61XXAGHKMXX; Part No.: 1326690/001 | D15: 10 | E15: NO | G15: 0
B16: 7 | C16: Vega level sensor , -20…+80*C, Type: SW 72, 40 KHz, 10367897, Serial no:10343969 | D16: 20 | E16: NO | G16: =F16*D16 -> 0
B17: 8 | C17: VegaMET 391 Controller MET391.XXHXX Part No.: 2053013/001 | D17: 10 | E17: NO | G17: 0
B18: 9 | C18: VegaPULSE WL 61 Radar Level 15m Part No.: 2560934/1 | D18: 10 | E18: NO | G18: 0
B19: 10 | C19: VegaSON62 ProfibusPA Level Tx 0.4-8m Part No.: 2051554/001 | D19: 10 | E19: NO | G19: 0
B20: 11 | C20: VEGASON62 – SON62.XXAGPKMXX | D20: 10 | E20: NO | G20: 0
B21: 12 | C21: VEGAPULS C31 Radar Level Part No.: RA-222 229 | D21: 50 | E21: NO | G21: =F21*D21 -> 0
B22: 13 | C22: VEGAPULS C21 Part No.: RA-222 22M | D22: 50 | E22: NO | G22: 0
B23: 14 | C23: VEGAMET 841 | D23: 15 | E23: NO | G23: 0
B24: 15 | C24: PLICSCOM | D24: 10 | E24: NO | G24: 0
B25: 16 | C25: VEGAMET 842 | D25: 15 | E25: NO | G25: 0
B26: 17 | C26: VEGAMET 381 | D26: 15 | E26: NO | G26: 0
B27: 18 | C27: VEGA PULSE WL 61 RADA LEVEL 15M PART NO: 2601950/1 | D27: 30 | E27: NO | G27: 0
B28: 19 | C28: VEGAPLUS 61 by VEGA Range 0.25…5m, Process Pressure -20…+200kPa, (-.2…2Bar) Temperature -40. +80-degree C, Electronic 4…20mA HART, Power Supply 12…36V Protection: IP66/67 | D28: 20 | E28: NO | G28: 0
B29: 20 | C29: Vega level sensor , -20…+80*C, Type: SW 72, 40 KHz, 10367897, Serial no:10343969 | D29: 20 | E29: NO | G29: 0
B30: 21 | C30: VEGAMET 391 by VEGA Ambient Temperature -20. +60-degree C, Electronic 4…20mA HART, Power Supply 20…253VAC/DC, 50-60HZ, Protection: IP66/67 | D30: 20 | E30: NO | G30: 0
B31: 22 | C31: Vegamet 381, Type: met381.XX, Temperature: -20..6*C, Protection:IP20 / IP40, Order no: 000000/000, Serial no:42036183 | D31: 20 | E31: NO | G31: 0
B32: 23 | C32: VEGA DIS12 by VEGA Type: DIS12.XBXX, Protection: IP66/IP67 | D32: 2 | E32: NO | G32: 0
B33: 24 | C33: MiniMe Sensor by VEGA P/N:LU13 – 5001, | D33: 2 | E33: NO | G33: 0
B34: 25 | C34: VEGA EL 4 by VEGA Type: EL4X5VTKX , LEMGTH 400mm | D34: 2 | E34: NO | G34: 0
B35: 26 | C35: PLICS Radio R62 by VEGA Temperature 40-80 degree, Output 9.6-48V, 24-42V, Frequency 932-928mHZ | D35: 5 | E35: NO | G35: 0
B36: 27 | C36: Level indicators for slaker house, Make VEGAMET 381, Signal 4-20mA | D36: 10 | E36: NO | G36: 0
B37: 28 | C37: Vegamet 381, Type: met381.XX, Temperature: -20..6*C, Protection:IP20 / IP40, Order no: 000000/000, Serial no:42036183 | D37: 20 | E37: NO | G37: 0
C38: ENDRESS & HAUSER EQUIPMENT
B39: =B37+1 -> 29 | C39: Endress & Hauser Prosonic FDU Part No.: 80-RG2A | D39: 10 | E39: NO | G39: =F39*D39 -> 0
B40: =B39+1 -> 30 | C40: Endress & Hauser FMU 90 Cover P3+Display Field housing PC Part No.: 52025699 Commodity Code: 39269097 | D40: 10 | E40: NO | G40: 0
B41: =B40+1 -> 31 | C41: Endress & Hauser Level Transmitter Prosonic S FMU90 Part No.: FMU 90-R21CA213AA1A | D41: 10 | E41: NO | G41: 0
B42: 32 | C42: Endress & Hauser FDU91 Prosonic S Part No.: FDU91-RG2AA | D42: 10 | E42: NO | G42: 0
B43: 33 | C43: Endress & Hauser Prosonic T FMU Part No.: FMU 230E-AA31 | D43: 10 | E43: NO | G43: 0
B44: 34 | C44: Prosonic level sensor, 4 bar/58psi (at20 ~C/ 68~F), -40~C (-40~F), 80~C (176~F) | D44: 30 | E44: NO | G44: 0
C45: SIEMENS EQUIPMENT
B46: =B44+1 -> 35 | C46: Siemens level probes, Order no: 7ML51101De074AF1, Serial no: PBD/LD0606/77, Enclosure: 1P68 Type6, Cable Entry: M20x1.5, Am Temp:40* to +80*C, Power rating : 24VDC, Nom, 30VDC max,, 4-20mA | D46: 20 | E46: NO | G46: =F46*D46 -> 0
C47: MISCELLANEOUS
B48: =B46+1 -> 36 | C48: MOBREY ROSEMOUNT MEASUREMENT MSP9OOSH-AULTRASONIC LEVEL TRANSMITTER | D48: 15 | E48: NO | G48: =F48*D48 -> 0
B49: =B48+1 -> 37 | C49: Level Switches for Chlorine plant, Model LS-7 Level switch, 20VA,120-240VAC | D49: 10 | E49: NO | G49: =F49*D49 -> 0
B50: =B49+1 -> 38 | C50: Milltronics Siem Multi Range 200, Power rating , 100/115/200/230V +-15%, 15 VA, 50/60Hz, Operating temp:-20*C to 50*C | D50: 20 | E50: NO | G50: =F50*D50 -> 0
C51: PRESSURE TRANSMITTER
C52: WIKA EQUIPMENT
B53: =B50+1 -> 39 | C53: Wika Pressure Transmitters & Pressure Gauge C/W Chemical Seal Range: 0-10Bar | D53: 30 | E53: NO | G53: =F53*D53 -> 0
B54: =B53+1 -> 40 | C54: Wika Pressure Transmitters LS-10 Part No.: 14067747 | D54: 20 | E54: NO | G54: 0
B55: 41 | C55: WIKA 0-6 BAR UPT-20 –ZZZ-KA-AA-BG360-GDS2Z-Z PART NO:14107319 | D55: 15 | E55: NO | G55: 0
B56: 42 | C56: WIKA 0-10 BAR UPT-20 –ZZZ-KA-AA-BG416-GDS2Z-Z PART NO:14104581 | D56: 15 | E56: NO | G56: 0
B57: 43 | C57: WIKA 0-16 BAR UPT-20 –ZZZ-KA-AA-BG416-GDS2Z-Z PART NO:14104581 | D57: 15 | E57: NO | G57: 0
B58: 44 | C58: WIKA UPT20 PRESSURE INDICATOR 0-16 BAR | D58: 15 | E58: NO | G58: 0
B59: 45 | C59: Wika Pressure gauge alarm contact, Type cont 821.2, | D59: 10 | E59: NO | G59: 0
C60: IFM EQUIPMENT
B61: =B59+1 -> 46 | C61: IFM Pressure Transducer PA3023 PA-025-RBR14_A-ZVG | D61: 10 | E61: NO | G61: =F61*D61 -> 0
B62: 47 | C62: IFM Pressure Switch 10 bar Part No.: 7007 | D62: 10 | E62: NO | G62: 0
B63: 48 | C63: IFM Pressure Switch 25 bar PA3024 | D63: 10 | E63: NO | G63: 0
B64: 49 | C64: IFM PA3023 Pressure sensor 0-150Bar PA-025-RBR14-A-ZVG/US//V | D64: 15 | E64: NO | G64: 0
B65: 50 | C65: IFM PN7007 Pressure sensor 0-10Bar | D65: 10 | E65: NO | G65: 0
B66: 51 | C66: IFM Electronic, D-45127 Essen 20-30v | D66: 5 | E66: NO | G66: 0
C67: Barksdale Equipment | G67: R-
B68: =B66+1 -> 52 | C68: Barksdale Pressure Transmitter 5W2000 (10-15Bar) Part No.: 0428-127 | D68: 20 | E68: NO
B69: 53 | C69: Barksdale Pressure sensor 0-15Bar Part No.: 0428-127 | D69: 20 | E69: NO | G69: =F69*D69 -> 0
C70: SIEMENS
B71: =B69+1 -> 54 | C71: Siemens SITRANS P Pressure Transmitter Profibus PA 0 - 100Bar Part No.: MF4034-1EA00-1AB7-Z | D71: 10 | E71: NO | G71: =F71*D71 -> 0
B72: 55 | C72: Siemens SITRANS P Pressure Transmitter Profibus PA 0 - 16Bar Part No.: MF4033-1DA00-1AB6-Z | D72: 10 | E72: NO | G72: 0
B73: 56 | C73: Pressure Transmitter (SIEMENS) Output HART@ 4-20Ma, Power supply: 10.5 – 45VDC Over ranging limits -1 – 32 Bar | D73: 15 | E73: NO | G73: 0
B74: 57 | C74: Siemens Pressure Transmitter , D76181krishe, Measuring span 16 bar, Over range limit1-32 | D74: 10 | E74: NO | G74: 0
B75: 58 | C75: Seimens Transmitter for differential pressure, Rang 16mbar-16mbar | D75: 10 | E75: NO | G75: 0
B76: 59 | C76: SIEMENS PRESSURE TRANSMITTER 0-10 BAR | D76: 50 | E76: NO | G76: 0
B77: 60 | C77: SIEMENS PRESSURE TRANSMITTER 0-16 BAR | D77: 50 | E77: NO | G77: 0
B78: 61 | C78: SIEMENS 0-10 BAR 7MF1567-3CA-001GA1 PRESSURE TRANSMITTER | D78: 20 | E78: NO | G78: 0
B79: 62 | C79: Siemens Pressure Transmitter Sitrans P 7MF034-1EA00-1AB7-2 | D79: 10 | E79: NO | G79: 0
C80: ENDRESS & HAUSER
B81: =B79+1 -> 63 | C81: Endress & Hauser iTemp PT100 - PA Converter Part No.: TMT84-1009/101 | D81: 10 | E81: NO | G81: =F81*D81 -> 0
B82: 64 | C82: Endress & Hauser Cerabar s TX PMP71-AND1U11GAAA | D82: 10 | E82: NO | G82: =F82*D82 -> 0
B83: 65 | C83: Endress+ Hauser Serial Cerabar M, Oder no PMC51-37AO/O, Oder Code PMC51-A21JAPGCXJA | D83: 5 | E83: NO | G83: =F83*D83 -> 0
C84: ROSEMOUNT EQUIPMENT
B85: =B83+1 -> 66 | C85: Pressure Transmitter (ROSEMOUNT), Output HART@ 4-20Ma, Power supply: 10.5 – 45VDC | D85: 15 | E85: NO | G85: =F85*D85 -> 0
C86: FUJI EQUIPMENT
B87: =B85+1 -> 67 | C87: Pressure Transmitter (FUJI) Electronic Output 4…20mA HART, Power Supply 28VDC | D87: 15 | E87: NO | G87: =F87*D87 -> 0
C88: ASHKROFT EQUIPMENT
B89: =B87+1 -> 68 | C89: ASHKROFT ½” BOTTOM ENTRY 100MM DAIL 0-1600 KPA | D89: 45 | E89: NO | G89: =F89*D89 -> 0
B90: =B89+1 -> 69 | C90: ASHKROFT ½” BOTTOM ENTRY 100MM DAIL 0-4000 KPA | D90: 45 | E90: NO | G90: =F90*D90 -> 0
B91: =B90+1 -> 70 | C91: I.T.S.LIQUID LEVEL TRASMITTER TSS 15XLP 19040917mH20 17m | D91: 12 | E91: NO | G91: =F91*D91 -> 0
B92: =B91+1 -> 71 | C92: I.T.S.LIQUID LEVEL TRASMITTER TSS 10XLP0-10,00 mh 190408 12m | D92: 12 | E92: NO | G92: =F92*D92 -> 0
C93: RHOMBERG EQUIPMENT
B94: =B92+1 -> 72 | C94: RHOMBERG 0-100 KPA ½” BSP | D94: 15 | E94: NO | G94: =F94*D94 -> 0
B95: =B94+1 -> 73 | C95: RHOMBERG 0-250 KPA 1/2 “ BSP | D95: 15 | E95: NO | G95: 0
B96: 74 | C96: RHOMBERG 0-600 KPA ½” BSP | D96: 15 | E96: NO | G96: 0
B97: 75 | C97: RHOMBERG 0-1000 KPA ½” BSP | D97: 15 | E97: NO | G97: 0
B98: 76 | C98: RHOMBERG 0-4000 KPA ½” BSP | D98: 15 | E98: NO | G98: 0
B99: 77 | C99: RHOMBERG 0-6000 KPA ½” BSP | D99: 15 | E99: NO | G99: 0
B100: 78 | C100: RHOMBERG 0-100 KPA ½” BSP | D100: 15 | E100: NO | G100: 0
C101: MISCELLANEOUS
B102: =B100+1 -> 79 | C102: SA GAUGE 0-1600 KPA/16BAR PT1-16B | D102: 15 | E102: NO | G102: =F102*D102 -> 0
B103: =B102+1 -> 80 | C103: SA GAUGE 0-1000KPA/10BAR PT1-10B | D103: 12 | E103: NO | G103: 0
B104: =B103+1 -> 81 | C104: SENSUS 10BAR PART NUMBER:182056 PRESSURE SENSOR | D104: 30 | E104: NO | G104: 0
B105: 82 | C105: SENSUS 20 BAR PART NUMBER: 182077 PRESSURE SENSOR | D105: 30 | E105: NO | G105: 0
B106: 83 | C106: SENSUS 40 BAR PART NUMBER: 243900 PRESSURE SENSOR | D106: 30 | E106: NO | G106: 0
B107: 84 | C107: SENSUS REED SWITH: READ 01 IP68 WITHPLUGS | D107: 30 | E107: NO | G107: 0
B108: 85 | C108: SENSUS HRI-MEI B4/32ms/10L/DN40-125 EXTERNAL POWER SUPPLY | D108: 30 | E108: NO | G108: 0
B109: 86 | C109: Pressure Gauge, 2,5(63mm)x ¼ BSP, 0-1000kPa black | D109: 20 | E109: NO | G109: 0
B110: 87 | C110: Pressure Gauge Range 0-4000Kpa, 100mm Dial, ½ inch bottom entry female threaded It must have a chlorine compatible diaphragm | D110: 20 | E110: NO | G110: 0
B111: 88 | C111: Pressure Gauge Range: -500Kpa to 500Kpa, 100mm Dial, ½ inch bottom entry female threaded It must have a chlorine compatible diaphragm | D111: 20 | E111: NO | G111: 0
B112: 89 | C112: Chlorine Gauges Range: 0-600 Bar 100mm Dial, ½ inch bottom entry female threaded It must have a chlorine compatible diaphragm | D112: 20 | E112: NO | G112: 0
B113: 90 | C113: Instrotech 900 Transmitter 1707729 | D113: 10 | E113: NO | G113: 0
B114: 91 | C114: Genspec GS4200 Pressure Transmitter 0-16Bar | D114: 20 | E114: NO | G114: 0
B115: 92 | C115: EMA Honeywell pressure switch, 0.5-6 bar max , Druck 16 bar, DCM 6 | D115: 5 | E115: NO | G115: 0
B116: 93 | C116: ABB ADJUSTABLE AMING MOUNTING BRACKET A900 | D116: 15 | E116: NO | G116: 0
B117: 94 | C117: ABB LLT100 LEVEL TRANSMITTER LAZER TRANSMITTER | D117: 15 | E117: NO | G117: 0
B118: 95 | C118: ABB LST 400YOS15NIP3AIH15C2M5 | D118: 6 | E118: NO | G118: 0
B119: 96 | C119: Yokogawa Dp Transmitter , Model EX530A | D119: 10 | E119: NO | G119: 0
B120: 97 | C120: Gauges , Range 0-1000kpa, ½ 1nch male fitting, Glycerine filled, NIP | D120: 30 | E120: NO | G120: 0
B121: 98 | C121: Pressure Gauge C/W Chemical Seal Range: 0 – 1600kPa Dial Size: 100mm Stainless Steel inner Chemical Seal - Teflon Seal (Chlorine) ½” Entry | D121: 20 | E121: NO | G121: 0
B122: 99 | C122: Pressure Gauges Range 0-1600 Kpa, 100mm Dial, ½ inch bottom entry female threaded It must have a chlorine compatible diaphragm | D122: 20 | E122: NO | G122: 0
B123: 100 | C123: Pressure gauge Range: 0-1000 kpa, 100mm Dial, 1/2-inch male fitting diaphragm gauge, Glycerine filled bottom entry, NTP | D123: 20 | E123: NO | G123: 0
B124: 101 | C124: Pressure Gauge Range: 0-1600 kpa, 100mm Dial, 1/2-inch male fitting diaphragm gauge Glycerine filled bottom entry NTP | D124: 20 | E124: NO | G124: 0
B125: 102 | C125: Pressure Gauge Range: 0-4000 kpa, 100mm Dial, 1/2-inch male fitting diaphragm gauge, Glycerine filled bottom entry | D125: 20 | E125: NO | G125: 0
B126: 103 | C126: Pressure gauge Range: 0-2500kpa, 100mm Dial, 1/2-inch male fitting diaphragm gauge, Glycerine filled bottom entry, NTP | D126: 20 | E126: NO | G126: 0
B127: 104 | C127: Manocont Movement Pressure Gauge, All Stainless Steel, ½” BSP Bottom Connection. Range: 0-1000kPa, Fitted To 316L T-Piece, Complete With Transmitter & XWD6001 Chemical Seal, PTFE Coating Of Wetted Parts, For Chlorine Application – Including PTFE Protection Foil For Diaphragm | D127: 30 | E127: NO | G127: 0
B128: 105 | C128: Pressure Gauge -100 – 300kpa ½” 049529 PBBF105504.WB5BC01 | D128: 10 | E128: NO | G128: 0
B129: 106 | C129: Pressure Gauge 0-1600kpa ½” PBBF10SS04WC3HC01 | D129: 10 | E129: NO | G129: 0
B130: 107 | C130: Pressure Gauge C/W Chemical Seal -100 – 300 kpa | D130: 10 | E130: NO | G130: 0
B131: 108 | C131: Pressure Gauge C/W Chemical Seal 0 – 4000 kpa | D131: 10 | E131: NO | G131: 0
B132: 109 | C132: Unite Electric Chemical Sealed Pressure Switch Part No.: H100-702 | D132: 10 | E132: NO | G132: 0
B133: 110 | C133: Pressure Recorder - Model TRIDP | D133: 30 | E133: NO | G133: 0
B134: 111 | C134: WATSON MARLOW 520 REM 0-2 BAR 0-30 PSI ROTA | D134: 30 | E134: NO | G134: 0
B135: 112 | C135: WATSON MARLOW 520 REM 2-4 BAR 30-60 PSI ROTA | D135: 30 | E135: NO | G135: 0
B136: 113 | C136: WATSON MARLOW 520 REM 4-7 BAR 60-100 PSI ROTA | D136: 30 | E136: NO | G136: 0
B137: 114 | C137: Isolated Smart Transmitter Output 4- 20Ma, Range: 0_ 1600 | D137: 2 | E137: NO | G137: 0
B138: 115 | C138: Pneumatic Equipment (AIR TAC) Pressure range 0-0.8 Mpa (0-8.0Ba), Temperature 5 – 60 degree C, Pressure 1.2Mpa (120ba), Operating Angle +-15 degree, Direction change:4mm(100,200Serialies) or 5mm(300 Serial) | D138: 5 | E138: NO | G138: 0
C139: VEGA EQUIPMENT
B140: =B138+1 -> 116 | C140: VegaBAR52 0-25Bar Pressure TX Part No.: 1751818/001 | D140: 10 | E140: NO | G140: =F140*D140 -> 0
B141: =B140+1 -> 117 | C141: VEGA BAR 82 2601950/003 0-60 BAR LEVPRESSURE TRANSMITTER | D141: 20 | E141: NO | G141: 0
B142: =B141+1 -> 118 | C142: VEGAPULS C31 Radar Level Part No.: RA-222 229 | D142: 50 | E142: NO | G142: 0
B143: =B142+1 -> 119 | C143: VEGAPULS C21 Part No.: RA-222 22M | D143: 50 | E143: NO | G143: 0
B144: 120 | C144: VEGAMET 841 | D144: 15 | E144: NO | G144: 0
B145: 121 | C145: VEGAMET 842 | D145: 15 | E145: NO | G145: 0
B146: 122 | C146: VEGAMET 381 | D146: 15 | E146: NO | G146: 0
B147: 123 | C147: VEGA PULSE WL 61 RADA LEVEL 15M PART NO: 2601950/1 | D147: 30 | E147: NO | G147: 0
B148: 124 | C148: VEGA BAR 82 2601950/003 0-60 BAR LEVPRESSURE TRANSMITTER | D148: 20 | E148: NO | G148: 0
B149: 125 | C149: VEGAPLUS 52 by VEGA Range 0 -+2.5 Bar (0...+250kPa), Process Pressure -1…+50kPa (100…+5000kPa), Temperature -40...+120-degree C, Electronic 4…20mA HART Power Supply 12…36V, Protection: IP66/67 | D149: 20 | E149: NO | G149: 0
B150: 126 | C150: VEGAPLUS 64 by VEGA Range 0 …+25 Bar (0...+2500kPa), Process Pressure -1…+60kPa (-100…+6000kPa), Temperature -20...+120 degree C, Electronic 4…20mA HART, Power Supply 12…36V, Protection: IP66/67 | D150: 20 | E150: NO | G150: 0
B151: 127 | C151: VEGAPLUS 61 by VEGA Range 0 -+2.5 Bar (0. +250kPa), Process Pressure -1…2bar , 100…+200kPa), Electronic 4…20mA HART, Power Supply 9.6…36VDC, Protection: IP66/67 | D151: 20 | E151: NO | G151: 0
B152: 128 | C152: VEGAPLUS 52 by VEGA Range 0 -+2.5 Bar (0...+250kPa), Process Pressure -1…+50kPa (100…+5000kPa), Temperature -40...+120-degree C, Electronic 4…20mA HART Power Supply 12…36V, Protection: IP66/67 | D152: 20 | E152: NO | G152: 0
B153: 129 | C153: VEGAPLUS 64 by VEGA Range 0 …+25 Bar (0...+2500kPa), Process Pressure -1…+60kPa (-100…+6000kPa), Temperature -20...+120 degree C, Electronic 4…20mA HART, Power Supply 12…36V, Protection: IP66/67 | D153: 20 | E153: NO | G153: 0
B154: 130 | C154: VEGAPLUS 61 by VEGA Range 0 -+2.5 Bar (0. +250kPa), Process Pressure -1…2bar , 100…+200kPa), Electronic 4…20mA HART, Power Supply 9.6…36VDC, Protection: IP66/67 | D154: 20 | E154: NO | G154: 0
B155: 131 | C155: VEGAPLUS 61 by VEGA Range 0.25…5m, Process Pressure -20…+200kPa, (-.2…2Bar) Temperature -40. +80-degree C, Electronic 4…20mA HART, Power Supply 12…36V Protection: IP66/67 | D155: 20 | E155: NO | G155: 0
B156: 132 | C156: VEGAMET 391 by VEGA Ambient Temperature -20. +60-degree C, Electronic 4…20mA HART, Power Supply 20…253VAC/DC, 50-60HZ, Protection: IP66/67 | D156: 20 | E156: NO | G156: 0
B157: 133 | C157: VEGA DIS12 by VEGA Type: DIS12.XBXX, Protection: IP66/IP67 | D157: 2 | E157: NO | G157: 0
B158: 134 | C158: MiniMe Sensor by VEGA P/N:LU13 – 5001, | D158: 2 | E158: NO | G158: 0
B159: 135 | C159: VEGA EL 4 by VEGA Type: EL4X5VTKX , LEMGTH 400mm | D159: 2 | E159: NO | G159: 0
B160: 136 | C160: VEGABAR 52 by VEGA Type BR52.XXGG10HKMAS, Range 0 -0.4 Bar (0. +40kPa), Temperature -40. +120-degree C, Electronic 4…20mA HART, Power Supply 12…36V Protection: IP66/67 | D160: 10 | E160: NO | G160: 0
B161: 137 | C161: VEGAPLUS 65 by VEGA Range 1-3 Bar (-100 -300kPa), Process Pressure -1…+50kPa Process Temperature -40…+130-degree C, Electronic 4…20Ma HART, Power Supply 12…36V, Protection: IP66/67 | D161: 10 | E161: NO | G161: 0
B162: 138 | C162: VEGABAR 52 by VEGA Type BR52.XXGG10HKMAS, Range 0 -0.4 Bar (0. +40kPa), Temperature -40. +120-degree C, Electronic 4…20mA HART, Power Supply 12…36V Protection: IP66/67 | D162: 10 | E162: NO | G162: 0
B163: 139 | C163: VEGAPLUS 65 by VEGA Range 1-3 Bar (-100 -300kPa), Process Pressure -1…+50kPa Process Temperature -40…+130-degree C, Electronic 4…20Ma HART, Power Supply 12…36V, Protection: IP66/67 | D163: 10 | E163: NO | G163: 0
C164: SUB-TOTAL | G164: =SUM(G10:G164) -> 0
C168: Total for all Deliverables | D168: =G164 -> 
C169: Disbursements at 12% of Total for all Deliverables | D169: =D168*0.12 -> 
C170: Transport Costs at 8% | D170: =D168*0.08 -> 
C171: SUBTOTAL before VAT | D171: =SUM(D168:D170) -> 
C172: VAT (if applicable) | D172: =D171*0.15 -> 
C173: FORM OF OFFER (for commercial evaluation purposes) | D173: =SUM(D171:D172) -> 
C175: NOTE : Goods/services will be called-off as and when required by Rand Water after the award of the contract. Rand Water reserves the right not to acquire all the estimated quantities at once. Suppliers are therefore advised not to procure goods/services upfront and only procure upon the instruction of Rand Water.

Sheet GROUP 2 - ACTUATORS & ACCESSORI
C2: BID NUMBER | D2: RW10392309/21
C3: BID DESCRIPTION | D3: SUPPLY & DELIVERY OF INSTRUMENTATION AND AUTOMATION EQUIPMENT SPARES
C4: BIDDER NAME
C7: DELIVERABLES (DESCRIPTION) | D7: QTY (A) | E7: UNIT OF MEASURE | F7: RATE (B) | G7: Total (A x B)
C8: ACTUATORS
C9: AUMA ACTUATORS
B10: 1 | C10: Auma Actuator Profibus Interface Card Model: AM-E/A-BUS-PBD-STD | D10: 30 | E10: NO | G10: =F10*D10 -> 0
B11: =B10+1 -> 2 | C11: Auma Actuator Profibus Cards Part No.: Z023.241A/06-03 | D11: 30 | E11: NO | G11: 0
B12: =B11+1 -> 3 | C12: Auma Actuator – Profibus Card Part No.: Z023.241/01 | D12: 30 | E12: NO | G12: 0
B13: 4 | C13: Auma Actuator - Optic Fibre Cards Part No.: Z023.241/01-04 | D13: 30 | E13: NO | G13: 0
B14: 5 | C14: Auma Actuator – Matic AM Logic Board Part No.: Z013.718D/01 | D14: 30 | E14: NO | G14: 0
B15: 6 | C15: Auma Actuator - 24VDC Interface Card Part No.: Z009.636B/03 | D15: 30 | E15: NO | G15: 0
C16: EMG ACTUATORS
B17: =B15+1 -> 7 | C17: EMG Actuator - Profibus Cards Part No.: 23435100567 | D17: 20 | E17: NO | G17: =F17*D17 -> 0
B18: 8 | C18: EMG Actuator Card DMC-26 | D18: 20 | E18: NO | G18: 0
C19: BURKERT ACTUATORS
B20: =B18+1 -> 9 | C20: Burkert Actuators ID | D20: 40 | E20: NO | G20: =F20*D20 -> 0
B21: =B20+1 -> 10 | C21: Burkert Actuators Complete ID 226463 | D21: 40 | E21: NO | G21: 0
B22: =B21+1 -> 11 | C22: Burkett Solenoid Valves 24VDC Part No.: 00131421 | D22: 40 | E22: NO | G22: 0
B23: =B22+1 -> 12 | C23: Burkert Actuator 225195 240V 90 DEG 35Nm | D23: 40 | E23: NO | G23: 0
B24: 13 | C24: Burkert 6519 H 8.0 G1/4 PN 2-8Bar 24VDC 2W Moore Solenoid | D24: 40 | E24: NO | G24: 0
B25: 14 | C25: Burkett 6519 W 6.0 FLNSCH PN 2-8Bar 24VDC 2W Moore Solenoid | D25: 40 | E25: NO | G25: 0
B26: 15 | C26: Burkett Solenoid Diaphragm Valve 6519-0013421 | D26: 40 | E26: NO | G26: 0
B27: 16 | C27: Burkett 6213A10.0 NBR 24VDC Solenoid Valve Part No.: 00125653 | D27: 40 | E27: NO | G27: 0
B28: 17 | C28: Burkett Actuator 3003 24VAC/DC | D28: 40 | E28: NO | G28: 0
B29: 18 | C29: Burkett Actuator / Valve 8804 Part No.: 00226462 | D29: 40 | E29: NO | G29: 0
B30: 19 | C30: Burkett Pneumatic Valve 24VDC Part No.: 00131421 | D30: 40 | E30: NO | G30: 0
B31: 20 | C31: Burkett solenoid valve 00126244 WWC, W2 4AL, PRA | D31: 20 | E31: NO | G31: =F31*D31 -> 0
B32: 21 | C32: Burket solenoid valve, 0407G40NBR, FLNSCH PN 2-10 bar, 24 V AC/DC 2W 88897 | D32: 20 | E32: NO | G32: =F32*D32 -> 0
B33: 22 | C33: Burkert solenoid valve 6519 H 8.0, G1/4 PN2-8bar, 230V 50/60Hz 2W, 00132468 | D33: 20 | E33: NO | G33: =F33*D33 -> 0
B34: 23 | C34: Burket Fluid control system, Type 0330, Circuit function C, Orifice seal material 2.0 Body material Fkm ms, 10..-10 bar, Port connection , Nominal pressure, 8W-voltage, frequency output | D34: 2 | G34: =F34*D34 -> 0
B35: 24 | C35: 2/2 way Solenoid Valve Manufacturer Burkert Part Number 5281-00-A13,0BBMSGM84-5-024/DC-08 | D35: 12 | E35: NO | G35: =F35*D35 -> 0
B36: 25 | C36: Burket solenoid valve Type 6516-6519, 3/2s/20rs/s way, Solenoid valve, 6519 H8.0, G ¼ PN2-8 bar, 230V 50-60Hz 2W, Identity no: 00132468 | D36: 20 | E36: NO | G36: =F36*D36 -> 0
C37: NOAH ACTUATOR
B38: =B36+1 -> 26 | C38: Noah Actuator NA-019 220V Actuator | D38: 3 | E38: NO | G38: =F38*D38 -> 0
B39: 27 | C39: Noah Actuator SA005L 220V Actuator | D39: 3 | E39: NO | G39: 0
C40: KINETROL ACTUATOR
B41: =B39+1 -> 28 | C41: Kinetrol Actuators GU9-9NU Type 074-100 | D41: 15 | E41: NO | G41: =F41*D41 -> 0
B42: 29 | C42: Kinetrol Actuator Type 074-104 ISON | D42: 15 | E42: NO | G42: 0
C43: FESTO
B44: =B42+1 -> 30 | C44: Festo solenoid valve Feto NVF 3-MOH, S/2-k-114-EX, 535987 E0SS, 2-10bar, 28-145 psi 220/230V 50/60Hz, 9/7VAIp00/65, MSFW-230-50/060Hz, 4540 | D44: 20 | E44: NO | G44: =F44*D44 -> 0
B45: 31 | C45: Festo plastic tubing 8mm PLN-8x1, 25-Sw, Mat-nr 195282, Serial 06-2015(016) Menge 50m | D45: 100 | E45: Meters | G45: =F45*D45 -> 0
B46: 32 | C46: Festo plastic tubing 6mm, PLN-6x1 –SW, Mat-nr 195281, Serial 02-2016(016) Menge 50m | D46: 100 | E46: Meters | G46: =F46*D46 -> 0
B47: 33 | C47: Festo plastic Tubing 4mm PLN-4 0.7-Sw, Mat-nr-195280, Serial 04-20169(016), Menge 50m | D47: 100 | E47: Meters | G47: =F47*D47 -> 0
C48: MISCELLANEOUS
B49: =B47+1 -> 34 | C49: Manual pneumatic valves for filter house, Part no 0452 06 13, ¼ inch valve | D49: 15 | E49: NO | G49: =F49*D49 -> 0
B50: 35 | C50: Solenoid valves for filter house, Part no C23BA400-X, 24 V DC | D50: 20 | E50: NO | G50: 0
B51: 36 | C51: Solenoid valves for PAC Plant, Part no 001324650-60Hz | D51: 20 | E51: NO | G51: 0
B52: 37 | C52: Waste valve solenoid for 4C Filter house, Make Numatics, Part no C3BA400-X AIR TO OPEN | D52: 20 | E52: NO | G52: 0
B53: 38 | C53: Numatics solenoid valve, C23BA400X, Outlet valve 24 V Single | D53: 20 | E53: NO | G53: 0
B54: 39 | C54: Numatics solenoid valve, C23BB600X, Inlet valve | D54: 20 | E54: NO | G54: 0
B55: 40 | C55: Iminorgren Solenoid Valve Type UQM/22152/122/16, Serial no: 1823, ISO –code 152 Bar 2-16 | D55: 10 | E55: NO | G55: 0
B56: 41 | C56: Neumatics solenoid valve C34BA400-X | D56: 20 | E56: NO | G56: 0
B57: 42 | C57: Norgren solenoid valve 1M1 Norgren Type: UQM/23354/6123/16, Serial no: 2020 ISO-code 356, Bar 2.8-16 | D57: 20 | E57: NO | G57: 0
B58: 43 | C58: Camozzi solenoid valve DKM/A-1/30 G 1/2”, MS Schlierber, Art 52XM 1030XGISSA Nr 30024374/001 | D58: 20 | E58: NO | G58: 0
B59: 44 | C59: Posiflex Positioner Type 368.00.164 | D59: 10 | E59: NO | G59: =F59*D59 -> 0
B60: 45 | C60: Jelpc valve Model SV310-08b-s 0.15-0.5mpa, Order code: SV-1-10-06-B-F-AC220V-W-F | D60: 2 | E60: NO | G60: 0
B61: 46 | C61: Solenoid Valve with 24V coil VSNC-FC-M52-MD-G14-F8, 577257, 2.5-10bar/36-145 psi | D61: 20 | E61: NO | G61: =F61*D61 -> 0
B62: 47 | C62: Solenoid valve, Schrader Bellows, Volts 24DC-Watts 9, Max pressure – 140 Model-K05303549 | D62: 20 | E62: NO | G62: 0
B63: 48 | C63: Solenoid valve Schrader Bellows, L70543102429, 24 Volt watt 9, Max pressure 140 Model :K065603549 | D63: 20 | E63: NO | G63: 0
B64: 49 | C64: EL-O-MATIC F20 PosiFlex Electro/Pneumatic Positioner 368.00.164 | D64: 10 | E64: NO | G64: =F64*D64 -> 0
B65: =B64+1 -> 50 | C65: Auma ma Cart, Part no:3838501, Serial no:9SC-10519 | D65: 10 | E65: NO | G65: =F65*D65 -> 0
B66: =B65+1 -> 51 | C66: Siemens positioner , 9-32V, 5W: 5.00.04, 1.4…7bar, -30…+80*C, Serial No: N1D6247545670 | D66: 8 | E66: NO | G66: 0
B67: =B66+1 -> 52 | C67: Rotork Vales milliamp card, Rotork 48083-02, 1151487273 | D67: 10 | E67: NO | G67: 0
C68: SUB-TOTAL | G68: =SUM(G8:G63) -> 0
C72: Total for all Deliverables | D72: =G68 -> 0
C73: Disbursements at 12% of Total for all Deliverables | D73: =D72*0.12 -> 0
C74: Transport Costs at 8% | D74: =D72*0.08 -> 0
C75: SUBTOTAL before VAT | D75: =SUM(D72:D74) -> 0
C76: VAT (if applicable) | D76: =D75*0.15 -> 0
C77: FORM OF OFFER (for commercial evaluation purposes) | D77: =SUM(D75:D76) -> 0
C79: NOTE : Goods/services will be called-off as and when required by Rand Water after the award of the contract. Rand Water reserves the right not to acquire all the estimated quantities at once. Suppliers are therefore advised not to procure goods/services upfront and only procure upon the instruction of Rand Water.

Sheet GROUP 3 - MISCELLANEOUS EQUIP
C2: BID NUMBER | D2: RW10392309/21
C3: BID DESCRIPTION | D3: SUPPLY & DELIVERY OF INSTRUMENTATION AND AUTOMATION EQUIPMENT SPARES
C4: BIDDER NAME
C7: DELIVERABLES (DESCRIPTION) | D7: QTY (A) | E7: UNIT OF MEASURE | F7: RATE (B) | G7: Total (A x B)
C8: POWER SUPPLIES
C9: PHOENIX EQUIPMENT
B10: 1 | C10: Power Supply – PHOENIX Input:100- 240V, Output :24V /40A, O/V 250V, SN: 0000281425 | D10: 20 | E10: NO | G10: =F10*D10 -> 0
B11: =B10+1 -> 2 | C11: Power Supply / Phoenix Input 24V – 10.5A, Output 24 – 10A, Operational V.22.5 – 30V | D11: 20 | E11: NO | G11: 0
B12: =B11+1 -> 3 | C12: Power Supply / Phoenix Input 100V – 240 V, Output DC 24 V– 10A | D12: 20 | E12: NO | G12: 0
B13: 4 | C13: Phoenix power supply contact, order no: 2866381, Input 100-240V-6-3A, 50-60Hz Operation voltage 85-264V, Derating 90V 2.5% V, Output24V-20A | D13: 20 | E13: NO | G13: =F13*D13 -> 0
B14: 5 | C14: Phoenix Trio power supply contact, Trio Ps/AC24DC /s, order no:2866310, Input:100-240V-?1.9-0.9A/SO-60+12, Operational voltage, 85-264V- / Derating <90V-2.5% V Output 24V…15A | D14: 20 | E14: NO | G14: =F14*D14 -> 0
C15: WEIDMULLER EQUIPMENT
B16: =B14+1 -> 6 | C16: WEIDMULLER QO6-17966-140902-00 POWER SUPPLY | D16: 30 | E16: NO | G16: 0
B17: =B16+1 -> 7 | C17: WEIDMULLER QO6-17966-160502-01 POWER SUPPLY | D17: 30 | E17: NO | G17: 0
B18: 8 | C18: WEIDMULLER 1469480000 POWER SUPPLY | D18: 30 | E18: NO | G18: 0
B19: 9 | C19: WEIDMULLER QO6-17966-150209-00 CP DM 10 | D19: 30 | E19: NO | G19: 0
B20: 10 | C20: WEIDMULLER QO6-17966-150112-00 POWER SUPPLY | D20: 30 | E20: NO | G20: 0
C21: POWER SUPPLIES MISCELLANEOUS
B22: =B20+1 -> 11 | C22: Siemens LOGO! Power Part No.: 6EP1331-ISH03 Input: 220VAC Output: 24VDC 1.3A | D22: 15 | E22: NO | G22: 0
B23: 12 | C23: ANDERSON – NEGELE Power supply 24VDC, 30Ma, Output 2*24 Vdc/100mA | D23: 2 | E23: NO | G23: 0
B24: 13 | C24: Power supply , Input voltage 0-110V, Unregulated 9V supply, Serial no:0506544 | D24: 20 | E24: NO | G24: =F24*D24 -> 0
B25: 14 | C25: AC/DC Dynamics Power Supplies; Model: DPSU/3/24; 220VAC-24VDC 3A (AD09F03/BC02B04/AF06M23) | D25: 100 | E25: NO | G25: =F25*D25 -> 0
B26: 15 | C26: Regulated Power Supply: Input Voltage: 85-264VAC; Output Voltage: 24VDC; Output Current: 10A; Power Rating: 240W; Mounting Type: DIN Rail Mounting | D26: 100 | E26: NO | G26: =F26*D26 -> 0
B27: 16 | C27: Regulated Power Supply: Input Voltage: 220VAC; Output Voltage: 24VDC; Output Current: 2A; Power Rating: 48W; Mounting Type: DIN Rail Mounting | D27: 100 | E27: NO | G27: =F27*D27 -> 0
B28: 17 | C28: PRODESIGN SD-50A-24 INPUT DC 12V(9.2-18V) 7A POWER SUPPLY | D28: 20 | E28: NO | G28: =F28*D28 -> 0
B29: 18 | C29: MEAN WELLSD-50A-24 POWER SUPPLY | D29: 12 | E29: NO | G29: =F29*D29 -> 0
C30: FLOW METERS
B31: =B29+1 -> 19 | C31: Krohne Carbon Dioxide Flow meter Part No.: 011081744.001 | D31: 2 | E31: NO | G31: =F31*D31 -> 0
B32: 20 | C32: Siemens mag flow display, 24V AC/DC, 50/60 Hz 10W, IP 67/ NEMA 6, -20*C TO +60*C Serial no:N1D7125601 | D32: 5 | E32: NO | G32: 0
B33: 21 | C33: Magflow with positioner, 100 (4inch), Lining: Ebonite, Sensor material: ASTMA 105 Electrodes: Hastelloy c276/24819, 16bar/232psi -10*C, Input 60v max 0.125max Order no:7ME65803TC142AA1 | D33: 5 | E33: NO | G33: 0
B34: 22 | C34: Ultrasonic flow transmitter, Input 110-220 V, Output 24V DC | D34: 5 | E34: NO | G34: 0
B35: 23 | C35: Fuji ultrasonic flow meter, Type:flw510Y2YYY1, Serial no: A9B6552T | D35: 5 | E35: NO | G35: 0
B36: 24 | C36: Seimens Transmitter for differential pressure, Rang 16mbar-16mbar | D36: 10 | E36: NO | G36: 0
B37: 25 | C37: Flow transmitter 8mm, Serial no:X0022101019 | D37: 5 | E37: NO | G37: 0
C38: RTD / PT100
B39: =B37+1 -> 26 | C39: RTD PT100 6mm x 210mm | D39: 30 | E39: NO | G39: =F39*D39 -> 0
B40: 27 | C40: Swift RTD SHE 62841 316/SS/FAB/150mm | D40: 30 | E40: NO | G40: 0
B41: 28 | C41: Afriso RTD 0380-14 | D41: 10 | E41: NO | G41: 0
B42: 29 | C42: RTD PT100 3 wire RTD, 6mm OD, with bayonet cap and springs, large head without ceramic blocks, 75mm flex leads with profibus head mount transmitter 140mm long Part Number: TMT84-1020/0 | D42: 40 | E42: NO | G42: 0
B43: 30 | C43: RTD PT100, 3-wire, Simplex, 6mm diameter, 180mm long with ceramic block and compressed brass fitting | D43: 40 | E43: NO | G43: 0
B44: 31 | C44: RTD PT100, 3-wire, Simplex, 6mm diameter, 140mm long with ceramic block and compressed brass fitting | D44: 40 | E44: NO | G44: 0
B45: 32 | C45: RTD PT100, 3-wire, Simplex, 6mm diameter, 240mm long with ceramic block and compressed brass fitting | D45: 40 | E45: NO | G45: 0
B46: 33 | C46: RTD Wire simplex PT100, 6mm Probe diameter, Length 100mm | D46: 40 | E46: NO | G46: 0
C47: ENDRESS & HAUSER
B48: =B46+1 -> 34 | C48: Endress & Hauser iTemp PT100 - PA Converter Part No.: TMT84-1009/101 | D48: 10 | E48: NO | G48: =F48*D48 -> 0
C49: SIEMENS
B50: =B48+1 -> 35 | C50: Siemens SITRANS T3K PT100 - PA Converter Part No.: 7NG3213-0NN00 | D50: 10 | E50: NO | G50: =F50*D50 -> 0
B51: =B50+1 -> 36 | C51: Siemens SITRANS TH400 PT100 - PA Converter Part No.: 7NG3214-0NN00 | D51: 10 | E51: NO | G51: 0
C52: FLOW SWITCHES
B53: =B51+1 -> 37 | C53: Switch-Tek Mini Float Switch PVDF Part No.: LH25-5201 | D53: 20 | E53: NO | G53: =F53*D53 -> 0
B54: =B53+1 -> 38 | C54: Tecfluid SC250 Flow Switch Part No.: LOM09ATEX2087X | D54: 15 | E54: NO | G54: 0
B55: 39 | C55: Tecfluid ADI15/BD Flow Switch | D55: 15 | E55: NO | G55: 0
B56: 40 | C56: Honsberg Flow Switch Part No.: MR-010GM010; Adjustable Range: 1-10l/min H2O; PN 200; IP65; 250VAC/1,5A/50VA | D56: 30 | E56: NO | G56: 0
B57: 41 | C57: Burket flow line switches, IP 66 BP n120308/048, 225192 | D57: 5 | E57: NO | G57: 0
B58: 42 | C58: ENDRESS+HAUSER DTT31 FLOW SWITCHES | D58: 18 | E58: NO | G58: 0
B59: 43 | C59: Level Switches for Chlorine plant, Model LS-7 Level switch, 20VA,120-240VAC | D59: 10 | E59: NO | G59: 0
C60: BARKSDALE EQUIMENT
B61: =B59+1 -> 44 | C61: Barksdale Flow Switch UQS7-170 Part No.: 0728-017 | D61: 20 | E61: NO | G61: =F61*D61 -> 0
C62: INDICATORS
B63: =B61+1 -> 45 | C63: IQ4 Digital Indicator 24VDC 4-020mA | D63: 5 | E63: NO | G63: =F63*D63 -> 0
B64: =B63+1 -> 46 | C64: Indicator: RKC Instrument Model: CB 900, Power Supply 240 VAC | D64: 10 | E64: NO | G64: 0
B65: =B64+1 -> 47 | C65: Flow indicators for flocculators, Make Calog, IP65V metal housing, | D65: 4 | E65: NO | G65: 0
B66: 48 | C66: Model 3508, Process indicator instrotech instrument and process control, 12V 24V INPUT signal cal 0-200 | D66: 20 | E66: NO | G66: 0
B67: 49 | C67: Lascar indicator, SP5 25j UK, 884567 | D67: 5 | E67: NO | G67: 0
B68: 50 | C68: Newport electronic indicators, Model: INFcp-101B, Serial no:0365030, 230V, 9.5W | D68: 5 | E68: NO | G68: 0
B69: 51 | C69: Corel Instrument Calog 4000S indicator, Modul-4001, 230V AC, Input 4-20ma S1N1911421 | D69: 10 | E69: NO | G69: 0
B70: 52 | C70: Red Lion Indicator, 3.2 V DC for cub4LPOO, 4.0 V DC for Cub 4LP40, 32 V DC for CUB CL911, Span range 0-2000, 100Ma, M2248D, RLC PT= CUB4CL20 | D70: 5 | E70: NO | G70: 0
B71: 53 | C71: Zenith 489 Indicator, AUX 24V DC, Input 4-20m, Module 489 | D71: 10 | E71: NO | G71: 0
B72: 54 | C72: Digital Anzelgel, Besteil lorder code A-A1-1-2-2 | D72: 10 | E72: NO | G72: 0
B73: 55 | C73: Zenith Indicator Model:489 INS, SN:10.01.05, Power supply:24VCC | D73: 10 | E73: NO | G73: 0
B74: 56 | C74: Vertex Indicator Corel Instrument, 4-20mA | D74: 2 | E74: NO | G74: 0
B75: 57 | C75: TOHO Electronics/ Indicator TTM-006 | D75: 2 | E75: NO | G75: 0
B76: 58 | C76: Honeywell : Amiens factory Indicator, Model: DC 300E-E, SIN: A940340953149001007 | D76: 2 | E76: NO | G76: 0
C77: VIBRATION EQUIPMENT
C78: Monitran Vibration Equipment
B79: =B76+1 -> 59 | C79: Monitran Vibration Sensor MTN-1185M8 Part No.: MONMTN1185-006 | D79: 15 | E79: NO | G79: =F79*D79 -> 0
B80: =B79+1 -> 60 | C80: Monitran Vibration Sensor Cables 5m Part No.: MONMTNCA137-001 | D80: 15 | E80: NO | G80: 0
C81: VIBRATION EQUIPMENT MISCELLANEOUS
B82: =B80+1 -> 61 | C82: IQ PAT 2400-M8C SENSORS VIBRATION | D82: 24 | E82: NO | G82: =F82*D82 -> 0
B83: 62 | C83: Vibration Sensors, MTN/1185M8-20F, S/N 249940, | D83: 30 | E83: NO | G83: =F83*D83 -> 0
B84: 63 | C84: Metrix Seismic Vibration Transmitter, STS484E-121-020-00, 9140151 | D84: 10 | E84: NO | G84: =F84*D84 -> 0
B85: 64 | C85: Vibration sensor (the plug- in version), Part No: MTN/1185M8-20F, S/N: 249940, Include: 3m cable with plug, Sensitivity: 20.3 mm/sec@20mA, Mounting threads M8 Male | D85: 20 | E85: NO | G85: =F85*D85 -> 0
B86: 65 | C86: SSD Rapier 510-300-5-0-310.0.0.0.00 Lime Plant Vibration drives | D86: 10 | E86: NO | G86: =F86*D86 -> 0
C87: SIEMENS
B88: =B86+1 -> 66 | C88: Siemens UXA-96285 230V Potentiometer | D88: 10 | E88: NO | G88: 0
B89: 67 | C89: Siemens Pointek CIS 200 flow switch UA0089 | D89: 10 | E89: NO | G89: 0
C90: MISCELLANEOUS ACCESSORIES
B91: =B89+1 -> 68 | C91: Filter Water Traps, MS12-LFR/LR/LWS, MS12-LF(M)/LF | D91: 10 | E91: NO | G91: =F91*D91 -> 0
B92: 69 | C92: Sensor for Chlorine, A-ULTX-SENS-28-0-0, A16-400444916-10-005 | D92: 5 | E92: NO | G92: 0
B93: 70 | C93: Bridges Spring Coupling, XCC-RAR1010, 093570 | D93: 10 | E93: NO | G93: 0
B94: 71 | C94: Water Traps, LF1/4-D-Mini-A, Malt no 159617 | D94: 10 | E94: NO | G94: 0
B95: 72 | C95: Phoenix Contact Light Arrestors , Art-NR 2792141 | D95: 30 | E95: NO | G95: 0
B96: 73 | C96: Relay 24V TRP3122 | D96: 15 | E96: NO | G96: 0
B97: 74 | C97: Surge Arrestors Cat No 900600, SABS 171-1986 | D97: 30 | E97: NO | G97: 0
B98: 75 | C98: Relays Bazz With 11pins, 10A 250V, 0467H | D98: 10 | E98: NO | G98: 0
B99: 76 | C99: IFM Electronic flow monitor, SID10ADBFKOW/LS, 45128 | D99: 5 | E99: NO | G99: 0
B100: 77 | C100: IFM Electronic flow monitor, SID10ADBFPKG/US, 100-IPF | D100: 5 | E100: NO | G100: 0
B101: 78 | C101: Burket, TCR-MODUL CROUSERIAL, 83.161.301 W2 | D101: 5 | E101: NO | G101: 0
B102: 79 | C102: Omron P-35, 28Y5 | D102: 5 | E102: NO | G102: 0
B103: 80 | C103: Encoders for Bridges, IFM Electronic gmbh, E60203 | D103: 10 | E103: NO | G103: 0
B104: 81 | C104: Telemecanique Nautilus, XMLB020A2S11, ENC Type 4x12 15A, 1LO842 | D104: 4 | E104: NO | G104: 0
B105: 82 | C105: Phoenix Contact, MCR-SL-1CCP-1/1-00-4Kv, 28 14 841 | D105: 5 | E105: NO | G105: 0
B106: 83 | C106: Burket flow , 12-30 VD4-20Ma, 4304, 0044406 | D106: 7 | E106: NO | G106: 0
B107: 84 | C107: IFM proximity switch, Electronic D5128, 15mm 20…250V AC/DC, 45…65Hz 350Ma AC, 100 Ma DC , IP 67110012, 11A | D107: 20 | E107: NO | G107: 0
B108: 85 | C108: IFM proximity switch electronic, D45127, 30…250V AC, 47…63 Hz, 250ma AC, KN 004 | D108: 20 | E108: NO | G108: 0
B109: 86 | C109: IFM proximity switch D45127, 600mm, 20…250V AC/DC, 45…65Hz, 180ma AC/DC, 0G0034 0GTHB0A | D109: 20 | E109: NO | G109: 0
B110: 87 | C110: Pepperl+fuchs Proximity switch, EN 50008- A13 , 10-3V, 150ma, Part no:85358 NBB4-12 GM , 50-E2 | D110: 20 | E110: NO | G110: 0
B111: 88 | C111: LG circuit breaker, BKN C16 , 400V IEC 60898, GB 10963, R050320 C16 | D111: 2 | E111: NO | G111: 0
B112: 89 | C112: Merlin Gerin, Multi 9 , C45, 5A type 2, 380 V 5Ka , 45205 | D112: 2 | E112: NO | G112: 0
B113: 90 | C113: Burket Timer , 060638L, ROHS , W4XLP | D113: 30 | E113: NO | G113: 0
B114: 91 | C114: Milltronics high temperature transducer, ST-25HT, Serial no:2419 | D114: 10 | E114: NO | G114: 0
B115: 92 | C115: Endress and Hauser Serial ma Cart, Lot 23111207 | D115: 5 | E115: NO | G115: 0
B116: 93 | C116: Pratley Cable boxes , 2 way, 56206 | D116: 15 | E116: NO | G116: 0
B117: 94 | C117: Yokogawa Display , Supply 24V AC/DC, 50/60 Hz, S5J907816 | D117: 5 | E117: NO | G117: 0
B118: 95 | C118: Endress and Hauser Serial Display, 5.6V, 1Ma, Order code FHX 40-A5A Serial no:9C00C001064 | D118: 5 | E118: NO | G118: 0
B119: 96 | C119: Khrone Altomermeter, 100-230 V AC, 50-60 Hz, 22V, Serial no:A12P05695 | D119: 5 | E119: NO | G119: 0
B120: 97 | C120: DPM temperature controller 4003 1303793 | D120: 15 | E120: NO | G120: =F120*D120 -> 0
B121: 98 | C121: ERO Electronic Controller Model: PKC 611252300 | D121: 15 | E121: NO | G121: 0
B122: 99 | C122: Ifm Electronic, D-45127 Essen 20-30v | D122: 5 | E122: NO | G122: 0
B123: 100 | C123: Flow moun Ltd Harrogate, Flow indicator | D123: 5 | E123: NO | G123: 0
B124: 101 | C124: Fine Tek, TCL 0-24v K200C, Output 4-20ma | D124: 10 | E124: NO | G124: 0
B125: 102 | C125: Flow Sensor for Filter House, Part no SA4300, Pressure Rating 50 bar | D125: 20 | E125: NO | G125: 0
B126: 103 | C126: Master-shave microprocessor, Model TDC /I/0550, SUPPLY 10VDC | D126: 3 | E126: NO | G126: 0
B127: 104 | C127: Idec Relay Type RR2P-U 26340 | D127: 3 | E127: NO | G127: =F127*D127 -> 0
B128: 105 | C128: Posiflex Positioner Type 368.00.164 | D128: 10 | E128: NO | G128: 0
B129: 106 | C129: Regulators for Chlorine plant, Material ;Polyethylene Tube, Size 10mm | D129: 20 | E129: NO | G129: =F129*D129 -> 0
B130: 107 | C130: Quint Phoenix contact DC- UPS, input: 24 DC, Output 10A, Order no:286626 22.5-30V | D130: 10 | E130: NO | G130: 0
B131: 108 | C131: Quint diode Phoenix contact, Order no:2938963, Input 24V max 30V, Lighting and surge protection | D131: 10 | E131: NO | G131: 0
B132: 109 | C132: Load cell Cnce// Pacific weighing, Model PA6140W, Capacity st, Output 2.0003 S/no 121716 | D132: 5 | E132: NO | G132: 0
B133: 110 | C133: Converter Temperature Transmitter, TX ISO pack, 2 wire 4-20Ma, PT100, 0-150C 50Hz PN 8807000100, SN 19235197 | D133: 20 | E133: NO | G133: 0
B134: 111 | C134: Corel instrument Process signal splitter, Dual output , Input 4-20Ma, Output 1 and 2 4-20Ma, 24 V DC Aux, Part no: GB-SP2/1A-1A-/AC | D134: 20 | E134: NO | G134: 0
B135: 112 | C135: Load cell Process automation , ULP, Part no:H3/300kg, Serial No: 9843743, Output 2.00Mv/v | D135: 20 | E135: NO | G135: 0
B136: 113 | C136: Telemecanique inductive proximity switch, XSD-H607339, SN=30…60mm | D136: 15 | E136: NO | G136: 0
B137: 114 | C137: Pepperl+fuchs proximity sensor, Type NBB20-u/-uu, Part no:238884, 250V DC/ 24-230 VAC, 500mA, 20mm, Serial no:40000062272797 | D137: 15 | E137: NO | G137: 0
B138: 115 | C138: Phoenix converter contact, EMD-FL 3V-400, Order no:2866064 | D138: 10 | E138: NO | G138: 0
B139: 116 | C139: K-unit signal conditioner, Model kwDy-AAR, Input 4-20ma DC, Output1 4-20Ma DC Output2 4-20Ma DC, Power 24V DC, Serial no:1C016198 | D139: 10 | E139: NO | G139: 0
B140: 117 | C140: Phoenix repetors contact, PSM-ME-RS485/RS485-p, 24V, Order no:2744429 | D140: 4 | E140: NO | G140: 0
B141: 118 | C141: Pepperl+Fuchs Phoenix contact voltage monitor, Supply 240 V ac, 13W 60Hz, Relay contacts 30Vdc, 2A 250 Vac, 2A, 0.2PF | D141: 4 | E141: NO | G141: 0
B142: 119 | C142: Omnierm LP/model C 2063A, B-Serial LP 1, 4-20Ma, 100 to 1000 ohm, Part no: 6.1103.001, | D142: 2 | E142: NO | G142: 0
B143: =B142+1 -> 120 | C143: Burket Fluid control system, Type 0330, Circuit function C, Orifice seal material 2.0 Body material Fkm ms, 10..-10 bar, Port connection , Nominal pressure, 8W-voltage, frequency output | D143: 2 | G143: 0
B144: 121 | C144: Superior gas CL2 sensor, Crowcon , Sm6323 v3.2, 2-Term sensor fit Lk2, 3 Term sensor fit LK3, Oxygen – none, S-5675 1SS/CL2 0-5ppm, S011263/S | D144: 5 | E144: NO | G144: 0
B145: 122 | C145: Pepperl+Fuchs Phoenix contact MCR-SL-1VLP-1/1-00-4 Kv, At no:2814841 | D145: 15 | E145: NO | G145: 0
B146: 123 | C146: Control board Evaporator E – 2000, W 3T163645 | D146: 1 | E146: NO | G146: =F146*D146 -> 0
B147: 124 | C147: Isolated Smart Transmitter Output 4- 20Ma, Range: 0_ 1600 | D147: 2 | E147: NO | G147: 0
B148: 125 | C148: Relay Contracts 30VDc - 2A, PEPPERL+FUCHS, Supply 240 VAC.BW. 60HZ, N1658 | D148: 2 | E148: NO | G148: 0
B149: 126 | C149: WEG Variable Speed drive with controller CFW 08 Vector Inverter, MOD : SACFW080016S2024ESZ , V 3.98 R47, Line: 200-240VAC, 3,5A, 50/60Hz, Output : 0…Red/Line, 1,6A, 0-300Hz, Serial :# 678566, XC8, Serial HMI Interface | D149: 2 | E149: NO | G149: 0
B150: 127 | C150: Controller WEG CFW 08, MOD : HMI-CFW08-RS, Serial # 5166, No: 585788, | D150: 10 | E150: NO | G150: 0
B151: 128 | C151: Endress + Hou Serial density meter display FHX40, Order Code: FHX40-A1A, Serial. No. C1007201064, Uin<5.6V, Iin < 1mA | D151: 5 | E151: NO | G151: 0
B152: 129 | C152: Load cell Processor Unipro measurement system, Model- SBQ-820-BINWEGH, Pareference M09121, 90-230Vac, 50/60Hz | D152: 2 | E152: NO | G152: 0
B153: 130 | C153: Chlorine Sensor Controller Siemens-Wallace and Tierman, GMS plus W3T158771, Electronic Module 230V. 50/60 Hz, 14VA, Sensor 1/11. 2xPT1000 .3xmA - out | D153: 5 | E153: NO | G153: 0
B154: 131 | C154: Electromatics System: Dual Level Relays, SN 150220, Power supply 220VAC | D154: 4 | E154: NO | G154: 0
B155: 132 | C155: Electromatics system: Inductive Sensor Relay, SD 110220, Power Supply :230V | D155: 4 | E155: NO | G155: 0
B156: 133 | C156: Inductive proximity switch, XS8D1A1PAL2, Ue: 12V….2V | D156: 10 | E156: NO | G156: 0
B157: 134 | C157: INSTRUMENT BLOWER FANS Blower Fan Part No: AA1282HB-AT, Dimensions 120X120X38, 220 V AC 22W Oriental Blower, 50Hz | D157: 5 | E157: NO | G157: =F157*D157 -> 0
B158: 135 | C158: Timer Control Unit Manufacturer Burkert Part Number 1078-1-BBT/DC-B-1 | D158: 12 | E158: NO | G158: =F158*D158 -> 0
B159: 136 | C159: Rotameter 160– 1600 l/hr Manufacturer TEC Part Number PT-11/1600/DR | D159: 12 | E159: NO | G159: 0
B160: 137 | C160: 405282400000 Finder relay Mini 2CO 8A 240VAC | D160: 20 | E160: NO | G160: =F160*D160 -> 0
B161: 138 | C161: 9505SPA Finder relay base 40/44 series | D161: 20 | E161: NO | G161: 0
B162: 139 | C162: 405191100000 Finder relay Mini 2CO 8A 110VDC | D162: 20 | E162: NO | G162: 0
B163: 140 | C163: 405281100000 Finder relay Mini 2CO 8A 110VAC | D163: 20 | E163: NO | G163: 0
B164: 141 | C164: 405290240000 Finder relay Mini 2CO 8A 24VDC | D164: 10 | E164: NO | G164: 0
B165: 142 | C165: ALLPRONIX RS-232 DAT9011-USB MODBUS CONVERTER | D165: 3 | E165: NO | G165: =F165*D165 -> 0
B166: 143 | C166: ALLP PR6333A RTDS CONVERTER 2 WIRE PROGRAMABLE TRANSMITTERS | D166: 9 | E166: NO | G166: 0
B167: 144 | C167: DANUBE Q06-150112-00 | D167: 9 | E167: NO | G167: 0
B168: 145 | C168: ENDRESS+HAUSER DTI130 FLUITECTOR | D168: 3 | E168: NO | G168: 0
B169: 146 | C169: ENDRESS+HAUSER EA021020000 RELAY | D169: 0 | E169: NO | G169: 0
B170: 147 | C170: ENDRESS+HAUSER TR 24-A42BXB300RTD PT100 | D170: 3 | E170: NO | G170: 0
B171: 148 | C171: ENDRESS+HAUSER CPS11D-7BT21 LIQUID ANALYSIS SENSOR | D171: 3 | E171: NO | G171: 0
B172: 149 | C172: ENDRESS+HAUSER CPS11D-CIEI LIQUID ANALYSIS SENSOR | D172: 3 | E172: NO | G172: 0
B173: 150 | C173: ENDRESS+HAUSER TMT84-11K/115 | D173: 12 | E173: NO | G173: 0
B174: 151 | C174: GE PT878 ULTRASONIC UNIT | D174: 18 | E174: NO | G174: 0
B175: 152 | C175: Grundfos Dosing Pump Model No.: DDI 6010AR PVC/V/GS-31B16F | D175: 20 | E175: NO | G175: 0
B176: 153 | C176: PRO VISTA TECNOLOGY ISC1000 MINI ISC SOLA REGULATOR | D176: 20 | E176: NO | G176: =F176*D176 -> 0
B177: 154 | C177: SENSUS COSMOS DATA LOGGER: IP68: 2 CHANNELS | D177: 30 | E177: NO | G177: =F177*D177 -> 0
B178: 155 | C178: 12V 102A/H Royal Batteries | D178: 200 | E178: NO | G178: =F178*D178 -> 0
B179: 156 | C179: CS3 12v 7A/H Batteries | D179: 200 | E179: NO | G179: 0
B180: 157 | C180: Battery charger 12V DC - Smart 15 12V | D180: 20 | E180: NO | G180: 0
B181: 158 | C181: Inverter - FCS-3K-VP-3000w | D181: 15 | E181: NO | G181: 0
B182: 159 | C182: Single Phase UPS - UPS 003505MP105 5kva 1Ph | D182: 5 | E182: NO | G182: 0
B183: 160 | C183: Three Phase UPS - UPS0035-3PH-MP1055kva 3ph | D183: 5 | E183: NO | G183: 0
C184: MW MEAN WELL RANGE OF BATTERY CHARGERS
B185: =B183+1 -> 161 | C185: Part NO: MW Mean Well PB -1000-24 , 2/3/8 Stage Switching Mode Battery Charger , Input :100 – 240V AC 12A 50-60 Hz Output: 28.8 V, 34.7A Lead Indicator, Suitable for lead-acid batteries, can be connected to 2 battery banks | D185: 6 | E185: NO | G185: 0
B186: 162 | C186: MW Mean Well Battery Charger, Part NO ADD – 155 B Input: 100 – 240 V 2,5A, 50/60Hz Output V1 + 27.6V(4.5A), V2 +5V(3.0A) , Battery 27,1V(0.5A) | D186: 3 | E186: NO | G186: 0
C187: DELTEC RANGE OF BATTERIES
B188: =B186+1 -> 163 | C188: Part NO: DELTEC BR-12V180FT, Valve Regulated Sealed Lead-Acid Battery, Constant Voltage Charge, Cycle Use:14,6 – 14,8V (25 C), Standby Use: 13,6 – 13,8 V, Initial Current less than 54A | D188: 12 | E188: NO | G188: 0
C189: ACDC DYNAMICS RANGE OF BATTERIES
B190: =B188+1 -> 164 | C190: ACDC Dynamics Valve Regulated Rechargeable Battery (Non-spill able) Part No SY1270 (12V7.OAH) Voltage Regulation (Standby Use 12,7 V – 13,9 V) and (Cyclic Use 14,4 – 14,7 V) Initial Current : 2,1 A Max | D190: 3 | E190: NO | G190: 0
C191: ACDC DYNAMICS RANGE OF BATTERY INVERTERS
B192: =B190+1 -> 165 | C192: ACDC DYNAMICS Power Inverter, Pure Sine Wave 600W, 24V, DC to AC | D192: 6 | E192: NO | G192: 0
C193: YOKOGAWA RANGE OF CHART RECORDERS
B194: =B192+1 -> 166 | C194: Yokogawa Chart Recorder, Part No FX1002, Power Supply :100 – 240V AC, Freq 50/60Hz | D194: 4 | E194: NO | G194: 0
C195: TRUTEQ RANGE OF WIRELESS RADIOS
B196: =B194+1 -> 167 | C196: Truteq Wireless Radio, Part No SPRi V.SMGR.FRG.1.0.0 GPRS/EDGE/HSPA ROUTER | D196: 3 | E196: NO | G196: 0
C197: SUB-TOTAL | G197: =SUM(#REF!) -> 
C201: Total for all Deliverables | D201: =G197 -> 
C202: Disbursements at 12% of Total for all Deliverables | D202: =D201*0.12 -> 
C203: Transport Costs at 8% | D203: =D201*0.08 -> 
C204: SUBTOTAL before VAT | D204: =SUM(D201:D203) -> 
C205: VAT (if applicable) | D205: =D204*0.15 -> 
C206: FORM OF OFFER (for commercial evaluation purposes) | D206: =SUM(D204:D205) -> 
... 1 more rows

Sheet GROUP 4 - PLC EQUIPMENT
B2: BID NUMBER | C2: RW10392309/21
B3: BID DESCRIPTION | C3: SUPPLY & DELIVERY OF INSTRUMENTATION AND AUTOMATION EQUIPMENT SPARES
B4: BIDDER NAME
B6: DELIVERABLES (DESCRIPTION) | C6: QTY (A) | D6: UNIT OF MEASURE | E6: RATE (B) | F6: Total (A x B)
B8: PLC, HMI&SCADA, Industrial Communications and Telemetry
B9: PLC [Allen Bradley]
A10: 1 | B10: AB 1606-XL 120DR 5A Power supply | C10: 6 | D10: NO | F10: =E10*C10 -> 0
A11: 2 | B11: AB 1756-DNB D Devicenet Communication module Part No.: PN-36089 | C11: 4 | D11: NO | F11: 0
A12: 3 | B12: AB 1794-ADN B Devicenet Flex IO 24V adapter Part No.: PN-90463 | C12: 4 | D12: NO | F12: 0
A13: 4 | B13: AB Logix5000 Battery assembly Part No.:1756-BA2 | C13: 6 | D13: NO | F13: 0
A14: 5 | B14: AB 24 Digital input cards for Controllogix PLC | C14: 12 | D14: NO | F14: 0
A15: 6 | B15: AB 2-20 mA Analog input cards Controllogix PLC | C15: 5 | D15: NO | F15: 0
A16: 7 | B16: AB 24V DC Digital Output cards Controllogix PLC | C16: 12 | D16: NO | F16: 0
B17: PLC [Schneider Electric]
A18: 8 | B18: Schneider Electric PLC Processor Module M340 Part No.: BMXP 342020 | C18: 10 | D18: NO | F18: 0
A19: 9 | B19: Schneider Electric PLC Processor Module M580 Part No.: BMEP 583040 | C19: 15 | D19: NO | F19: 0
A20: 10 | B20: Momentum I/O Base 8 Channel Analog Input Module Part No.: 170AA103000 | C20: 6 | D20: NO | F20: 0
A21: 11 | B21: Momentum Top Head (Unity CPU) Part No.: 171CBU98090 | C21: 7 | D21: NO | F21: 0
A22: 12 | B22: Schneider Electric MBX NOM 0200 Modbus Model 2 PLC Card RS 485 / 232 Port | C22: 18 | D22: NO | F22: 0
A23: 13 | B23: Schneider Electric M580 CPU, Part No.: BME P58 2020 | C23: 10 | D23: NO | F23: 0
A24: 14 | B24: Schneider Electric M580 PLC Rack, Part No.: BME XBP 0600 | C24: 12 | D24: NO | F24: 0
A25: 15 | B25: Schneider Electric M580 PLC Power Supply, Part No.: BMX CPS 3500 | C25: 25 | D25: NO | F25: 0
A26: 16 | B26: Schneider Electric M580 PLC Network Module, Part No.: BME NOC 0311.3 | C26: 30 | D26: NO | F26: 0
A27: 17 | B27: Schneider Electric M580 PLC 24VDC Digital Input Module, Part No.: BMX DDI 1602 | C27: 80 | D27: NO | F27: 0
A28: 18 | B28: Schneider Electric M580 24V Digital Output module | C28: 50 | D28: NO | F28: 0
A29: 19 | B29: Schneider Electric M580 4-20mA Analog input module | C29: 30 | D29: NO | F29: 0
A30: 20 | B30: Schneider Electric M580 RTD/Thermocouple module | C30: 25 | D30: NO | F30: 0
A31: 21 | B31: Schneider Electric M580 220V ac Digital Input module | C31: 30 | D31: NO | F31: 0
A32: 22 | B32: Schneider Electric M580 220V ac Digital output module | C32: 20 | D32: NO | F32: 0
A33: 23 | B33: Schneider Electric M580 Relay output module | C33: 30 | D33: NO | F33: 0
A34: 24 | B34: Schneider Electric M580 Ethernet communication module | C34: 25 | D34: NO | F34: 0
A35: 25 | B35: Profibus PRM Module, Part No.: TCSEGPA23F14F | C35: 20 | D35: NO | F35: 0
A36: 26 | B36: Power Supply 24VDC, Part No.: ABL8RPS24100 | C36: 20 | D36: NO | F36: 0
A37: 27 | B37: Modicon Momentum 170 AA0 92100 8CH AN OUT | C37: 3 | D37: NO | F37: 0
A38: 28 | B38: Modicon Momentum 170 AAI 14000 16CH AN IN | C38: 3 | D38: NO | F38: 0
A39: 29 | B39: Modicon Momentum 170 ADI 34000 16CH 24V IN | C39: 4 | D39: NO | F39: 0
A40: 30 | B40: Modicon Momentum 170 ADI 74050 16CH 230VAC IN | C40: 4 | D40: NO | F40: 0
A41: 31 | B41: Modicon Momentum 170 INT 711001Interbus comms adapter | C41: 3 | D41: NO | F41: 0
A42: 32 | B42: Modicon Momentum 170 PNT11020 Comms adapter MB+ single port | C42: 4 | D42: NO | F42: 0
A43: 33 | B43: Schneider BMEP583040 M580 processor level 3 | C43: 20 | D43: NO | F43: 0
A44: 34 | B44: Schneider BMXAMI0410 Analog In 4 ch Isolated high speed | C44: 20 | D44: NO | F44: 0
A45: 35 | B45: Schneider BMXNOM0200 2 RS-485/232 port module | C45: 25 | D45: NO | F45: 0
A46: 36 | B46: Schneider BMXP342020 CPU340-20 Modbus Ethernet | C46: 20 | D46: NO | F46: 0
A47: 37 | B47: Schneider EGX100MG Ethernet Gateway | C47: 15 | D47: NO | F47: 0
A48: 38 | B48: Schneider STBACO0220K Analog C OUT 2ch 16Bit | C48: 15 | D48: NO | F48: 0
A49: 39 | B49: Schneider STBNDP2212 Profibus DP NIM | C49: 15 | D49: NO | F49: 0
A50: 40 | B50: 140 NOE 771 10 TSX Quantum Ethernet Card | C50: 20 | D50: NO | F50: 0
A51: 41 | B51: 140 NOM 252 00 TSX Quantum ModBus Plus Card | C51: 10 | D51: NO | F51: 0
A52: 42 | B52: 140 DDO 353 00 Discreet DC Output 24V 4x8 Source | C52: 5 | D52: NO | F52: 0
A53: 43 | B53: 140 DDO 364 00 DC Output 24V 6x16 Source | C53: 15 | D53: NO | F53: 0
A54: 44 | B54: 140 ACI 030 00 Analog Input | C54: 5 | D54: NO | F54: 0
A55: 45 | B55: 140 DDM 390 00 Module I/O 24VDC | C55: 10 | D55: NO | F55: 0
A56: 46 | B56: 140 DDI 673 00 Module Input 125VDC 3x8 | C56: 5 | D56: NO | F56: 0
A57: 47 | B57: 140 DDI 353 00 Discreet DC Input 24V 4x8 Sink | C57: 5 | D57: NO | F57: 0
A58: 48 | B58: 140 DDI 841 00 DC Input 10-60V 8x2 Sink | C58: 20 | D58: NO | F58: 0
A59: 49 | B59: 140 ATI 030 00 TC Input 8CH | C59: 10 | D59: NO | F59: 0
A60: 50 | B60: 140 ACI 030 00 Analog Input 8CH Unipolar | C60: 10 | D60: NO | F60: 0
A61: 51 | B61: 140 ACO 020 00 Analog Output 4CH Current | C61: 15 | D61: NO | F61: 0
A62: 52 | B62: 140 DAO 840 00 AC OUT 24-230V 16x1 | C62: 10 | D62: NO | F62: 0
A63: 53 | B63: 140 DAI 540 00 AC Input 115V 16x1 | C63: 10 | D63: NO | F63: 0
A64: 54 | B64: 140 DAI 740 00 AC Input 230V 16x1 | C64: 10 | D64: NO | F64: 0
A65: 55 | B65: 140 ACI 0400 Modicon Quantum 16 channel Analogue Input module | C65: 30 | D65: NO | F65: 0
A66: 56 | B66: 140 CPS 11420 Modicon Quantum Power Supply module 115/230V AC | C66: 20 | D66: NO | F66: 0
A67: 57 | B67: 140 CRA 21110 DIO DROP ModBus AC Power Supply 1CH | C67: 15 | D67: NO | F67: 0
A68: 58 | B68: 140 CRA 93100 RIO DROP S908 1CH | C68: 10 | D68: NO | F68: 0
A69: 59 | B69: BMX NOE 0100 Ethernet 10/100 RJ45 | C69: 20 | D69: NO | F69: 0
A70: 60 | B70: BMX AMI 0410 Analogue input module X-80 with 4 high speed inputs | C70: 20 | D70: NO | F70: 0
A71: 61 | B71: BMX AMI 0810 Analogue input module X-80 with 8 high speed inputs | C71: 20 | D71: NO | F71: 0
A72: 62 | B72: BMX AMO 0802 Analog 8 U/I Input Isolated Fast | C72: 20 | D72: NO | F72: 0
A73: 63 | B73: BME CRA 31210 X80 RIO DROP E/IP Perf | C73: 15 | D73: NO | F73: 0
A74: 64 | B74: BMX NOM 0200 Serial link Module with RS-458/232 ports in Modbus and character mode | C74: 5 | D74: NO | F74: =E74*C74 -> 0
A75: 65 | B75: BMX CPS 2000 Standard AC Power Supply | C75: 30 | D75: NO | F75: 0
A76: 66 | B76: BMX CPS 3000 Power Supply Isolated 24to48VDC | C76: 20 | D76: NO | F76: 0
A77: 67 | B77: BMX CPS 3020 High Power Isolated 24to48VDC Power Supply | C77: 20 | D77: NO | F77: 0
A78: 68 | B78: BMX CPS 3500 High Power AC Power Supply | C78: 20 | D78: NO | F78: 0
A79: 69 | B79: BMX DDO 1602 Digital 16Q Trans Source 0.5A | C79: 10 | D79: NO | F79: 0
A80: 70 | B80: BMX DDO 3202K Digital 32Q Trans Source 0.1A | C80: 20 | D80: NO | F80: 0
A81: 71 | B81: BMX DDI 1602 Digital 16I 24VDC Sink | C81: 10 | D81: NO | F81: 0
A82: 72 | B82: BMX DDI 6402K Digital 64I 24VDC Sink | C82: 10 | D82: NO | F82: 0
A83: 73 | B83: BMX DDI 3202 Digital 32I 24VDC Sink | C83: 15 | D83: NO | F83: 0
A84: 74 | B84: BMX DRA 0805 Digital 16I 24VDC Sink | C84: 20 | D84: NO | F84: 0
A85: 75 | B85: BMX PRA 0100 Peripheral Remote IO Adapter | C85: 10 | D85: NO | F85: 0
A86: 76 | B86: BMX P34 2020 CPU340-20 Modbus Ethernet | C86: 20 | D86: NO | F86: 0
A87: 77 | B87: BMX NOC 0401 EtherNet/IP &Modbus TCPM340 Module | C87: 10 | D87: NO | F87: 0
A88: 78 | B88: BMX EHC 0200 High Speed Counter 2CH | C88: 10 | D88: NO | F88: 0
A89: 79 | B89: BMX XBP 0800 M340 8 Slot Backplane | C89: 10 | D89: NO | F89: 0
A90: 80 | B90: BME P58 3040 M580 Processor level 3 for D&R I/Os | C90: 20 | D90: NO | F90: 0
A91: 81 | B91: BME P58 4020 M580 Processor level 4 for D I/Os | C91: 10 | D91: NO | F91: 0
A92: 82 | B92: BME P58 4040 M580 Processor level 4 for D&R I/Os | C92: 10 | D92: NO | F92: 0
A93: 83 | B93: STB DDI 3725KS 24VDC Input 16PT Basic kit screw, Base | C93: 20 | D93: NO | F93: 0
A94: 84 | B94: STB DDO 3600 24VDC Output 6PT Basic kit Conns, Base | C94: 10 | D94: NO | F94: 0
A95: 85 | B95: STB XBA 2200 Mounting Base for STB Power module | C95: 10 | D95: NO | F95: 0
A96: 86 | B96: STB NDP 2212 Standard Network interface Module for Profibus DP at 9.6kbit/s | C96: 10 | D96: NO | F96: 0
A97: 87 | B97: STB DRC 3210 Standard Digital output kit 24V 115…230V AC 2 NO/NC | C97: 10 | D97: NO | F97: 0
A98: 88 | B98: STB NIP 2311 Standard Network Interface Module STB - Ethernet modbus TCP/IP - 10...100 Mbits | C98: 20 | D98: NO | F98: 0
A99: 89 | B99: STB NIP 2212 Standard Network Interface Module STB - Ethernet - 10 Mbit/s | C99: 30 | D99: NO | F99: 0
A100: 90 | B100: STB ACO 0220K Analog C OUT 2CH 4-20MA 16 Bit | C100: 20 | D100: NO | F100: 0
A101: 91 | B101: STB ACO 1225K Analog C OUT 2CH Basic 4-20 Kit Conns, Base | C101: 10 | D101: NO | F101: 0
A102: 92 | B102: STB ACI 0320K Analog C OUT 4CH, 4-20MA Kit Conns, Base | C102: 20 | D102: NO | F102: 0
A103: 93 | B103: STB ACI 0320K Analog C OUT 4CH, 4-20MA Kit Conns, Base | C103: 20 | D103: NO | F103: 0
A104: 94 | B104: STB PDT 3100K STB Power Module 24V DC card | C104: 15 | D104: NO | F104: 0
A105: 95 | B105: STB PDT 2100 STB Power Module 115/220V AC card | C105: 10 | D105: NO | F105: 0
A106: 96 | B106: STB DAI 7220 230VAC Input 2PT Kit Conns | C106: 10 | D106: NO | F106: 0
A107: 97 | B107: STB DAO 8210 115/230VAC Output 2PTb Kit | C107: 10 | D107: NO | F107: 0
A108: 98 | B108: BMX RMS 008 MPF 8MB CPU Memory Card | C108: 10 | D108: NO | F108: 0
A109: 99 | B109: BME CRA 31210 M580 RIO CPU Remote IO CPU | C109: 15 | D109: NO | F109: 0
A110: 100 | B110: BMXCPS3500 M340,FA 100/240vCA 36W | C110: 10 | D110: NO | F110: 0
A111: 101 | B111: BMXXBP1200 M340,Rack 12 Pos | C111: 5 | D111: NO | F111: 0
A112: 102 | B112: BMEP581020 M580,CPU,Eth,1024D,256A,NoRIO | C112: 10 | D112: NO | F112: 0
A113: 103 | B113: BMXDDI3202K M340,32 ED,24vDC (40P) | C113: 10 | D113: NO | F113: 0
A114: 104 | B114: BMXDDO3202K M340,32 SD,TRT,24vDC,LogPos (40P) | C114: 10 | D114: NO | F114: 0
A115: 105 | B115: BMXFCW303 M340,Bornero 40P+Precable 2x20 Hilos 3m | C115: 10 | D115: NO | F115: 0
A116: 106 | B116: BMXAMI0810 M340,08 EA 16b,Aisl,10v,20mA | C116: 10 | D116: NO | F116: 0
A117: 107 | B117: BMXFTW308S M340,Bornero 28P+Precable Apant_3m | C117: 5 | D117: NO | F117: 0
A118: 108 | B118: BMXART0814 M340,08 EA 15b+sig,Aisl,Temp.TC/RTD | C118: 20 | D118: NO | F118: 0
A119: 109 | B119: BMXFCW301S M340,Bornero 40P+Precable Apant 1x20 Hil | C119: 10 | D119: NO | F119: 0
A120: 110 | B120: BMXXEM010 KIT 5 MODULOS VACIOS | C120: 5 | D120: NO | F120: 0
A121: 111 | B121: ABL8RPS24100 FUENTE CONM. FILTRO ARM. 10A 24Vdc 240W | C121: 5 | D121: NO | F121: 0
A122: 112 | B122: HMIDT732 PANTALLA 15'' XGA SMART DISPLAY GTU | C122: 10 | D122: NO | F122: 0
A123: 113 | B123: HMIG3U MODULO PROCESADOR PREMIUM BOX GTU | C123: 15 | D123: NO | F123: 0
A124: 114 | B124: STBNIP2311 STB,Com,Eth MB TCP/IP Dual Port | C124: 20 | D124: NO | F124: 0
A125: 115 | B125: BMEXBP1200 M580,Rack Eth 12 Pos | C125: 5 | D125: NO | F125: 0
A126: 116 | B126: BMEP584040 M580,CPU,Eth,4096D,1024A,RIO | C126: 10 | D126: NO | F126: 0
A127: 117 | B127: BMXNRP0200 M340,Com,FOMultiLC | C127: 15 | D127: NO | F127: 0
A128: 118 | B128: BMECRA31210 M580,Com,EthernetIO Drop Avanzado | C128: 20 | D128: NO | F128: 0
A129: 119 | B129: BMXP342020 M340,CPU,Eth,Serie,USB,1024D,256A | C129: 10 | D129: NO | F129: 0
A130: 120 | B130: BMXNOC0401 M340,Com,Eth DIO Head | C130: 10 | D130: NO | F130: 0
A131: 121 | B131: BMXAMO0410 M340,04 SA 15b+sig,Aisl,10v,20mA | C131: 15 | D131: NO | F131: 0
A132: 122 | B132: BMXFTW301S M340,Bornero 20P+Precable Apant 3m | C132: 5 | D132: NO | F132: 0
A133: 123 | B133: BMXXBE2005 M340,Kit,2xTSXTLYEX,2xBMXXBE1000,1xBMXXB | C133: 5 | D133: NO | F133: 0
A134: 124 | B134: BMXDDO3202K M340,32 SD,TRT,24vDC,LogPos (40P) | C134: 10 | D134: NO | F134: 0
A135: 125 | B135: BMEXBP0400 4 slots Eth backplane | C135: 10 | D135: NO | F135: 0
A136: 126 | B136: XVUC21B Unidad (DC) XVU, Negro | C136: 10 | D136: NO | F136: 0
A137: 127 | B137: XVUC23 Elemento Lumnioso LED XVU Verde | C137: 10 | D137: NO | F137: 0
A138: 128 | B138: XVUC24 Elemento Lumnioso LED XVU Rojo | C138: 10 | D138: NO | F138: =E138*C138 -> 0
A139: 129 | B139: XVUC25 Elemento Lumnioso LED XVU Naranja | C139: 10 | D139: NO | F139: 0
A140: 130 | B140: XVSUC9 Elemento Sorono XVU, Negro | C140: 10 | D140: NO | F140: 0
A141: 131 | B141: XVUZ02 Base con tubo de 100mm, Negro | C141: 10 | D141: NO | F141: 0
A142: 132 | B142: XVUC29 Multicolour –Unit | C142: 10 | D142: NO | F142: 0
A143: 133 | B143: 405282400000 Finder relay Mini 2CO 8A 240VAC | C143: 20 | D143: NO | F143: 0
A144: 134 | B144: 9505SPA Finder relay base 40/44 series | C144: 20 | D144: NO | F144: 0
A145: 135 | B145: 405191100000 Finder relay Mini 2CO 8A 110VDC | C145: 20 | D145: NO | F145: 0
A146: 136 | B146: 405281100000 Finder relay Mini 2CO 8A 110VAC | C146: 20 | D146: NO | F146: 0
A147: 137 | B147: 405290240000 Finder relay Mini 2CO 8A 24VDC | C147: 10 | D147: NO | F147: 0
A148: 138 | B148: SCHNEIDER ELECTRIC 140 CPU 65150 PENTIUM CONTROLLER CPU UNITY | C148: 10 | D148: NO | F148: 0
A149: 139 | B149: SCHNEIDER ELECTRIC 140 ACO 02000 4CH ANALOGUE OUT VOLTAGE | C149: 10 | D149: NO | F149: 0
A150: 140 | B150: SCHNEIDER ELECTRIC 140 ACI 0300 ANA IN 8CH UNIPOLAR | C150: 30 | D150: NO | F150: 0
A151: 141 | B151: SCHNEIDER ELECTRIC 140 CPS 1142ORSTD EXCH | C151: 15 | D151: NO | F151: 0
A152: 142 | B152: SCHNEIDER ELECTRIC 140 CRA 31200 R10 DROP E/IP QUANTUM | C152: 10 | D152: NO | F152: 0
A153: 143 | B153: SCHNEIDER ELECTRIC 140 CRP 31200 ETHERNET RIO HEAD | C153: 10 | D153: NO | F153: 0
A154: 144 | B154: SCHNEIDER ELECTRIC 140 DAI 74000 AC IN 230V | C154: 20 | D154: NO | F154: 0
A155: 145 | B155: SCHNEIDER ELECTRIC 140 DDI 35300 DC IN 24V 4x8 DISCRETE INPUT MODULE | C155: 20 | D155: NO | F155: 0
A156: 146 | B156: SCHNEIDER ELECTRIC 140 DDI 84100 DC IN 10-60V 8x2 SINK | C156: 20 | D156: NO | F156: 0
A157: 147 | B157: SCHNEIDER ELECTRIC 140 DDI 67300IN 125V 3x8 MODULE INPUT | C157: 20 | D157: NO | F157: 0
A158: 148 | B158: SCHNEIDER ELECTRIC 140 DDM 39000 MODULE 24VDC INPUT/OUTPUT | C158: 20 | D158: NO | F158: 0
A159: 149 | B159: SCHNEIDER ELECTRIC 140 DRA 84000 RELAY OUT 16x11 NO | C159: 20 | D159: NO | F159: 0
A160: 150 | B160: SCHNEIDER ELECTRIC 140 DDO 35300 DC OUT 24 V 4x8 | C160: 20 | D160: NO | F160: 0
A161: 151 | B161: SCHNEIDER ELECTRIC 140 DRC 8300 RELAY OUT 8x1 NO/NC | C161: 20 | D161: NO | F161: 0
A162: 152 | B162: SCHNEIDER ELECTRIC 140 XTS 00200 TERMINAL STRIP 40 POINT | C162: 20 | D162: NO | F162: 0
A163: 153 | B163: SCHNEIDER ELECTRIC 140 XBP 0100 BACKPLANE | C163: 10 | D163: NO | F163: 0
A164: 154 | B164: SCHNEIDER ELECTRIC 140 XBP 1600 36 SLOTS | C164: 10 | D164: NO | F164: 0
A165: 155 | B165: SCHNEIDER ELECTRIC ABL8 REM 24050 OPTIMUM POWER SUPPLY | C165: 10 | D165: NO | F165: 0
A166: 156 | B166: Profibus PRM Module, Part No.: TCSEGPA23F14F | C166: 10 | D166: NO | F166: 0
A167: 157 | B167: SCHNEIDER ELECTRIC ABL8 RPS24100 UNIVERSAL POWER SUPPLY | C167: 10 | D167: NO | F167: 0
A168: 158 | B168: SCHNEIDER ELECTRIC BMX P342000 CPU 340 MODBUS | C168: 20 | D168: NO | F168: 0
A169: 159 | B169: SCHNEIDER ELECTRIC BMX CPS 3500 HIGH POWER SUPPLY | C169: 15 | D169: NO | F169: 0
A170: 160 | B170: SCHNEIDER ELECTRIC BMX AM10810 ANA 8U/I IN ISOLATED FAST | C170: 20 | D170: NO | F170: 0
A171: 161 | B171: SCHNEIDER ELECTRIC BMX NOE0100 ETHERNET 10/100 RI45 | C171: 15 | D171: NO | F171: 0
A172: 162 | B172: SCHNEIDER ELECTRIC BMX XBP 08008 SLOTS BACKPLANE | C172: 10 | D172: NO | F172: 0
A173: 163 | B173: SCHNEIDER ELECTRIC BMX XBP 1200 12 SLOTS BACKPLANE | C173: 10 | D173: NO | F173: 0
A174: 164 | B174: SCHNEIDER ELECTRIC BMX XBP 0600 6 SLOTS | C174: 10 | D174: NO | F174: 0
A175: 165 | B175: SCHNEIDER ELECTRIC BMX CPS 200 STANDARD AC POWER SUPPLY | C175: 15 | D175: NO | F175: 0
A176: 166 | B176: SCHNEIDER ELECTRIC BMX DDI 3202K DIG 321 SINK | C176: 20 | D176: NO | F176: 0
A177: 167 | B177: SCHNEIDER ELECTRIC STBDD3600K 6PT KIT CONNS, BASE | C177: 10 | D177: NO | F177: 0
A178: 168 | B178: SCHNEIDER ELECTRIC STBACO0220K ANALOG C OUT 2CH 16 BIT | C178: 10 | D178: NO | F178: 0
A179: 169 | B179: SCHNEIDER ELECTRIC STBNDP2212 PROFIBUS DP NIM | C179: 10 | D179: NO | F179: 0
A180: 170 | B180: SCHNEIDER ELECTRIC TSX ASY 410 4Q ANA HL 150 | C180: 10 | D180: NO | F180: 0
A181: 171 | B181: SCHNEIDER ELECTRIC TSX AEY 810 81 ANA HIGH LEVEL | C181: 10 | D181: NO | F181: 0
A182: 172 | B182: SCHNEIDER ELECTRIC TSXPS73634M PROCESS UNIT | C182: 5 | D182: NO | F182: 0
A183: 173 | B183: SCHNEIDER ELECTRIC TSXPSY2600M POWER SUPPLY | C183: 10 | D183: NO | F183: 0
A184: 174 | B184: SCHNEIDER ELECTRIC TSXDEY32D2K SINK CONN | C184: 10 | D184: NO | F184: 0
A185: 175 | B185: BMXDAI1602 | C185: 30 | D185: NO | F185: 0
A186: 176 | B186: BMXDAO1605 | C186: 30 | D186: NO | F186: 0
A187: 177 | B187: BMXFTW308S | C187: 20 | D187: NO | F187: 0
A188: 178 | B188: BMXFCW303 | C188: 20 | D188: NO | F188: 0
A189: 179 | B189: BMXAMO0802 | C189: 30 | D189: NO | F189: 0
A190: 180 | B190: BMXDDO3202K | C190: 30 | D190: NO | F190: 0
A191: 181 | B191: BMXDDI3202K | C191: 30 | D191: NO | F191: 0
A192: 182 | B192: BMXNOM0200 | C192: 30 | D192: NO | F192: 0
A193: 183 | B193: BMXFCW301S | C193: 30 | D193: NO | F193: 0
A194: 184 | B194: BMXFTB2820 | C194: 50 | D194: NO | F194: 0
A195: 185 | B195: BMXFTB2010 | C195: 50 | D195: NO | F195: 0
A196: 186 | B196: BMXAMI0810 | C196: 30 | D196: NO | F196: 0
A197: 187 | B197: BMXDDI1602 | C197: 10 | D197: NO | F197: 0
A198: 188 | B198: BMEP582040 | C198: 10 | D198: NO | F198: 0
A199: 189 | B199: BMXCPS3500 | C199: 20 | D199: NO | F199: 0
A200: 190 | B200: BMEXBP1200 | C200: 10 | D200: NO | F200: 0
A201: 191 | B201: BMEXBP0800 | C201: 10 | D201: NO | F201: 0
A202: 192 | B202: SCHNEIDER ELECTRIC BMX AM 10410 ISOLATOR | C202: 20 | D202: NO | F202: =E202*C202 -> 0
A203: 193 | B203: SCHNEIDER ELECTRICBMX P342020 ETHERNET MODBUS | C203: 10 | D203: NO | F203: 0
... 165 more rows

Sheet GROUP 5 - ANALYTICAL EQUIPMENT
C2: BID NUMBER | D2: RW10392309/21
C3: BID DESCRIPTION | D3: SUPPLY & DELIVERY OF INSTRUMENTATION AND AUTOMATION EQUIPMENT SPARES
C4: BIDDER NAME
C7: DELIVERABLES (DESCRIPTION) | D7: QTY (A) | E7: UNIT OF MEASURE | F7: RATE (B) | G7: Total (A x B)
C9: ANALYTICAL/WATER QUALITY INSTRUMENTS
C10: Wallace+Tiernan
B11: 1 | C11: Wallace+Tiernan Sensor; Part No.: UXA 86376 (0-10ppm) | D11: 20 | E11: NO | G11: =F11*D11 -> 0
B12: 2 | C12: Wallace+Tiernan Vacuum Switch; Part No.: AAB 6291-40Kg | D12: 10 | E12: NO | G12: 0
B13: 3 | C13: Wallace+Tiernan Rotameter; Part No.: AAB 2623-40Kg | D13: 10 | E13: NO | G13: 0
B14: 4 | C14: Wallace+Tiernan Clamping Screw; Part No.: W3T169846 | D14: 10 | E14: NO | G14: 0
B15: 5 | C15: Wallace+Tiernan GSKT Seal; Part No.: W2T376757 | D15: 10 | E15: NO | G15: 0
B16: 6 | C16: Wallace+Tiernan Shaft Seal V10K; Part No.: W2T635517 | D16: 10 | E16: NO | G16: 0
B17: 7 | C17: Wallace+Tiernan Holder V-Notch; Part No.: W2T12072 | D17: 10 | E17: NO | G17: 0
B18: 8 | C18: Wallace+Tiernan GSKT Seal; Part No.: W2T12130 | D18: 10 | E18: NO | G18: 0
B19: 9 | C19: Wallace+Tiernan V-Notch Plug; Part No.: W3T171244 | D19: 10 | E19: NO | G19: 0
B20: 10 | C20: Wallace+Tiernan FTG ORFC; Part No.: W2T12149 | D20: 10 | E20: NO | G20: 0
B21: 11 | C21: Wallace+Tiernan Stem Plug; Part No.: W2T19250 | D21: 10 | E21: NO | G21: 0
B22: 12 | C22: Wallace+Tiernan Vacuum Regulator; Part No.: W3T357496 | D22: 10 | E22: NO | G22: 0
B23: 13 | C23: WALLANCE &TIERNAN SFCPC EVOQUA 230VAC 100-240V-50/60HZ 15W 42 CONTROLLER | D23: 15 | E23: NO | G23: 0
B24: 14 | C24: WALLANCE &TIERNAN DEPOLOX 5 PART W3T162565 SENSOR | D24: 15 | E24: NO | G24: 0
B25: 15 | C25: Wallace+Tiernan Heater; Part No.: W2T11756 | D25: 10 | E25: NO | G25: 0
B26: 16 | C26: Wallace+Tiernan AAA 8167 GMS (4-20) Part No.: 231240/18 | D26: 10 | E26: NO | G26: 0
B27: 17 | C27: HONEY WELL DO6F-1/2A CHLORINE ANALISER ( DEPOLOX4) | D27: 12 | E27: NO | G27: 0
C28: Hach
B29: 18 | C29: HACH SC200 Controllers Part No.: LXV404.99.00502 | D29: 20 | E29: NO | G29: =F29*D29 -> 0
B30: 19 | C30: HACH SC200 General purpose analyser Part No.: LXV404.99.00552 | D30: 80 | E30: NO | G30: 0
B31: 20 | C31: HACH SC1000 Turbidity Meter; Part No.: LXV 445.99.10112 | D31: 40 | E31: NO | G31: 0
B32: 21 | C32: HACH SC1000 Turbidity Meter; Part No.: LXV400.99.1E082 | D32: 20 | E32: NO | G32: 0
B33: 22 | C33: HACH SC1000 Display; Part No.: LXV 402.99.00002 | D33: 20 | E33: NO | G33: 0
B34: 23 | C34: HACH UltraTurb TU5300 Part No.: LXV445.99.10112 | D34: 80 | E34: NO | G34: 0
B35: 24 | C35: HACH pH Probe Part No.: DPD1R1 | D35: 40 | E35: NO | G35: 0
B36: 25 | C36: HACH Lamp Assembly 1720D/E Part No.: 1895000 | D36: 20 | E36: NO | G36: 0
B37: 26 | C37: HACH Photocell Assembly 1720D Replacement Kit Part No.: 5218000 | D37: 20 | E37: NO | G37: 0
B38: 27 | C38: HACH Circuit Board Assembly 1720E with Detector Part No.: 6012000 | D38: 20 | E38: NO | G38: 0
B39: 28 | C39: HACH Turb Solution 4000NTU 1000ml Part No.: | D39: 10 | E39: NO | G39: 0
B40: 29 | C40: HACH Chlorine Analyzer CL17 Maintenance Kits Part No.: 5444300 | D40: 20 | E40: NO | G40: 0
B41: 30 | C41: HACH SpecCheck Color STD DPD Part No.: 28933-00 | D41: 100 | E41: NO | G41: 0
B42: 31 | C42: HACH CL17sc Colorimetric Chlorine Analyser with Pressure Regulator Installation Kit and Reagents for Free Chlorine Manufacturer HACH Part Number 8572900 | D42: 3 | E42: NO | G42: 0
B43: 32 | C43: Digital Differential pH Sensor Manufacturer HACH Part Number DPD1R1 | D43: 80 | E43: NO | G43: 0
B44: 33 | C44: Digital Contacting Conductivity Sensor for High Conductivity (k=5.0) with 3/4" Kynar Compression Fitting Manufacturer HACH Part Number D3422D3 | D44: 6 | E44: NO | G44: 0
B45: 34 | C45: TU5300sc Low Range Laser Turbidimeter with Flow Sensor, Automatic Cleaning, RFID, and System Check, ISO Version Manufacturer HACH Part Number LXV445.99.53122 | D45: 12 | E45: NO | G45: 0
B46: 35 | C46: SC200 Universal Controller: 100-240 Vac with TWO DIGITAL SENSOR INPUTS and TWO 4-20mA Outputs Manufacturer HACH Part Number LXV404.99.00552 | D46: 40 | E46: NO | G46: 0
B47: 36 | C47: SC1000 Probe Module Manufacturer HACH Part Number LXV400.99.10092 | D47: 8 | E47: NO | G47: 0
B48: 37 | C48: SC1000 Multi-parameter Universal Controller Display Module Manufacturer HACH Part Number LXV402.99.11002 | D48: 2 | E48: NO | G48: 0
B49: 38 | C49: SS7 Surface Scatter High Range Turbidity Meter Manufacturer HACH Part Number 2977200 | D49: 2 | E49: NO | G49: 0
B50: 39 | C50: Digital Termination Box Manufacturer HACH Part Number 5867000 | D50: 40 | E50: NO | G50: 0
B51: 40 | C51: HACH 1895000 TURBIDITY GLOBE | D51: 9 | E51: NO | G51: 0
B52: 41 | C52: HACH 4503400 TURBIDITY GLOBE | D52: 9 | E52: NO | G52: 0
B53: 42 | C53: HACH TU5300 PART NO: LXV445.99.00002 | D53: 6 | E53: NO | G53: 0
B54: 43 | C54: HACH SC200 Controllers Part No.: LXV404.99.00502 1610CO162893 | D54: 6 | E54: NO | G54: 0
B55: 44 | C55: HACH SC200 General purpose analyser Part No.: LXV404.99.00552 | D55: 6 | E55: NO | G55: 0
B56: 45 | C56: HACH TUS300 SC (EPA) LXG445.99.1012 12V | D56: 6 | E56: NO | G56: 0
B57: 46 | C57: HACH SC100 LXV 40 1.52. 00002 09110C2338 | D57: 6 | E57: NO | G57: 0
B58: 47 | C58: HACH FLOWFIT W C P A250 CPA-A00 90 DEG BAR | D58: 6 | E58: NO | G58: 0
B59: 48 | C59: HACH Chlorine Analyzer CL-17 Reagents Part No.: 2556900 | D59: 100 | E59: NO | G59: 0
C60: SWAN
B61: 49 | D61: 10 | E61: NO | G61: =F61*D61 -> 0
B62: 50 | C62: Swan Shurecon P Conductivity Probe Part No.: A-87.342.110 | D62: 30 | E62: NO | G62: 0
B63: 51 | C63: Swan Swansensor Cable Sensor Cable and Screws Part No.: A-88.131.120 | D63: 30 | E63: NO | G63: 0
B64: 52 | C64: Swan Swansensor PT 1000 Temperature probe Part No.: A-87.030.200 | D64: 30 | E64: NO | G64: 0
B65: 53 | C65: Swan Solicon4 AMI-2 Part No.:23.421.200 100-240VAC | D65: 10 | E65: NO | G65: 0
B66: 54 | C66: Swan Flow Cell M-Flow 10-3PG Part No.:4-83.416.330 | D66: 20 | E66: NO | G66: 0
B67: 55 | C67: Yokogawa SC21C-AGP26 Combined pH Sensor non flow heavy duty | D67: 20 | E67: NO | G67: 0
B68: 56 | C68: pH Sensor SWAN AMI pH-Redox Manufacturer SWAN Part Number A.21.221.210 | D68: 12 | E68: NO | G68: 0
B69: 57 | C69: Temperature Sensor SWAN AMI pH-Redox Manufacturer SWAN Part Number A.87.120.200 | D69: 12 | E69: NO | G69: 0
B70: 58 | C70: Conductivity Sensor SWAN AMI SILICON4 Manufacturer SWAN Part Number A.23.421.200 | D70: 12 | E70: NO | G70: 0
B71: 59 | C71: Controller/Transmitter AMI pH/Redox- Power Supply 100-240 Vac, 50/60Hz Manufacturer SWAN Part Number A-11.411.100 | D71: 12 | E71: NO | G71: 0
B72: 60 | C72: Controller/Transmitter AMI Solicon 4 - Power Supply 100-240 Vac, 50/60Hz Manufacturer SWAN Part Number A-13.411.100 | D72: 12 | E72: NO | G72: 0
B73: 61 | D73: 10 | E73: NO | G73: 0
C74: ATI
B75: 62 | C75: ATI, Part Number: Q46-P-1-1-4-1, pH Monitor | D75: 24 | E75: NO | G75: =F75*D75 -> 0
B76: 63 | C76: ATI, Part Number: 07-0092, 03-0029, pH Sensor with Cable | D76: 45 | E76: NO | G76: 0
B77: 64 | C77: ATI, Part Number: Q46-63-1-1-1-4-1-3, Residual CL2 Analyser complete | D77: 30 | E77: NO | G77: 0
B78: 65 | C78: ATI, Part Number: Q46-62-1-1-1-4-1-3, Free CL2 Analyser complete | D78: 30 | E78: NO | G78: 0
B79: 66 | C79: ATI, Part Number: 00-15-10, Combined CL2 Sensor | D79: 30 | E79: NO | G79: 0
B80: 67 | C80: ATI, Part Number: 00-0066, Free CL2 Sensor | D80: 30 | E80: NO | G80: 0
B81: 68 | C81: ATI, Part Number: 09-0010, Residual CL2 Electrolyte | D81: 45 | E81: NO | G81: 0
B82: 69 | C82: ATI, Part Number: 09-0011, Free CL2 Electrolyte | D82: 45 | E82: NO | G82: 0
B83: 70 | C83: ATI, Part Number: 05-0007, Residual CL2 Membranes | D83: 150 | E83: NO | G83: 0
B84: 71 | C84: ATI, Part Number: 05-0005, Free CL2 Membranes | D84: 150 | E84: NO | G84: 0
B85: 72 | C85: ATI, Part Number: 23-00018, Residual CL2 Fuses | D85: 30 | E85: NO | G85: 0
B86: 73 | C86: ATI, Part Number: Q46/76-2-1-1-1-4, Turbidity Analyser | D86: 15 | E86: NO | G86: 0
B87: 74 | C87: ATI, Part Number: 63-0109, Turbidity Sensor | D87: 15 | E87: NO | G87: 0
B88: 75 | C88: ATI, Part Number: Q46C2-1-3-4-4-1-1, Cond Analyser-= | D88: 30 | E88: NO | G88: 0
B89: 76 | C89: ATI, Part Number: 07-0056, 2 Electrode Conductivity Sensor | D89: 45 | E89: NO | G89: 0
C90: ENDRESS+HAUSER
B91: 77 | C91: ENDRESS+HAUSER PH METER | D91: 9 | E91: NO | G91: =F91*D91 -> 0
B92: 78 | C92: ENDRESS+HAUSER PROFIBUS TURBIDITY METER | D92: 3 | E92: NO | G92: 0
B93: 79 | C93: ENDRESS+HAUSER DTI130 FLUITECTOR | D93: 3 | E93: NO | G93: 0
B94: 80 | C94: ENDRESS+HAUSER EA021020000 RELAY | D94: 0 | E94: NO | G94: 0
B95: 81 | C95: ENDRESS+HAUSER DTT31 FLOWSWITCHES | D95: 18 | E95: NO | G95: 0
B96: 82 | C96: ENDRESS+HAUSER TR 24-A42BXB300RTD PT100 | D96: 3 | E96: NO | G96: 0
B97: 83 | C97: ENDRESS+HAUSER CPS11D-7BT21 LIQUID ANALYSIS SENSOR | D97: 3 | E97: NO | G97: 0
B98: 84 | C98: ENDRESS+HAUSER CPS11D-CIEI LIQUID ANALYSIS SENSOR | D98: 3 | E98: NO | G98: 0
B99: 85 | C99: ENDRESS+HAUSER TMT84-11K/115 | D99: 12 | E99: NO | G99: 0
C100: TPS
B101: 86 | C101: TPS BUFFER 4.01 PH BUFFER | D101: 50 | E101: NO | G101: =F101*D101 -> 0
B102: 87 | C102: TPS BUFFER 7.00 PH BUFFER | D102: 50 | E102: NO | G102: 0
B103: 88 | C103: TPS 122306 STANDARD SOLUTION CONDUCTIVITY | D103: 50 | E103: NO | G103: 0
B104: 89 | C104: TPS 11228 5M PH SENSOR CABLES | D104: 20 | E104: NO | G104: 0
C105: YOKOGAWA
B106: 90 | C106: Yokogawa SC21C-AGP26 Combined pH Sensor non flow heavy duty | D106: 20 | E106: NO | G106: =F106*D106 -> 0
C107: CHLORINATOR EQUIPMENT [Grundfos]
B108: 91 | C108: Grundfos Vacuum Regulator Maintenance Kits Part No.: 96688766; CL2/148/120Kg/H/FH; 553-1084 | D108: 10 | E108: NO | G108: 0
B109: 92 | C109: Grundfos Regulators Maintenance Kits Part No.: 96688767 | D109: 10 | E109: NO | G109: =F109*D109 -> 0
B110: 93 | C110: Grundfos Chlorinator Rotameter Part No.: 96680945 | D110: 10 | E110: NO | G110: 0
B111: 94 | C111: Grundfos Differential Pressure Regulator Part No.: 96708603 | D111: 10 | E111: NO | G111: 0
B112: 95 | C112: Grundfos Dosing Pump Model No.: DDI 6010AR PVC/V/GS-31B16F | D112: 10 | E112: NO | G112: 0
B113: 96 | C113: Grundfos Chlorine Leak Detectors Sensors 553-1011 Part No.: 91835823 | D113: 100 | E113: NO | G113: 0
B114: 97 | C114: Grundfos Differential Regulator Part No.: 96708604 | D114: 10 | E114: NO | G114: 0
B115: 98 | C115: Grundfos CONEX DIS-G-P-CCA-X-W-G Chlorine Detector Type 307 Part No.: 96734178 | D115: 10 | E115: NO | G115: 0
B116: 99 | C116: Grundfos VGS-148 Chlorine Pressure Regulator Part No.: 96681286 | D116: 10 | E116: NO | G116: 0
B117: 100 | C117: Grundfos Vacuum Regulator and attachments VGS148-120 Part No.:96681286 | D117: 10 | E117: NO | G117: 0
B118: 101 | C118: Grundfos Smart Digital XL AR-PVC/V/C-F-31U3FG | D118: 10 | E118: NO | G118: 0
B119: 102 | C119: Grundfos Dosing Pump Maintenance Kit Part No.: 96688971 | D119: 10 | E119: NO | G119: 0
B120: 103 | C120: Grundfos Dosing Pump DDI 150-4APF-PVC-L/V/G/-31B2B2F Part No.: 96717300 | D120: 10 | E120: NO | G120: 0
B121: 104 | C121: Grundfos Dosing Pump Pressure Switch DDI 150-4PVC/FM Part No.: 96688971 | D121: 10 | E121: NO | G121: 0
B122: 105 | C122: Grundfos Vacuum Pressure Gauge Part No.: 96680904 | D122: 10 | E122: NO | G122: 0
B123: 106 | C123: Grundfos Vacuum Pressure Gauge Range: -10 – 0 Part No.: 96708738 | D123: 10 | E123: NO | G123: 0
B124: 107 | C124: Grundfos Chlorinator GS145 Selector Switch | D124: 10 | E124: NO | G124: 0
C125: CHLORINATOR EQUIPMENT [WALLACE & TIERNAN]
B126: 108 | C126: Wallace+Tiernan Sensor; Part No.: UXA 86376 (0-10ppm) | D126: 20 | E126: NO | G126: =F126*D126 -> 0
B127: 109 | C127: Wallace+Tiernan Vacuum Switch; Part No.: AAB 6291-40Kg | D127: 10 | E127: NO | G127: 0
B128: 110 | C128: Wallace+Tiernan Rotameter; Part No.: AAB 2623-40Kg | D128: 10 | E128: NO | G128: 0
B129: 111 | C129: Wallace+Tiernan Clamping Screw; Part No.: W3T169846 | D129: 10 | E129: NO | G129: 0
B130: 112 | C130: Wallace+Tiernan GSKT Seal; Part No.: W2T376757 | D130: 10 | E130: NO | G130: 0
B131: 113 | C131: Wallace+Tiernan Shaft Seal V10K; Part No.: W2T635517 | D131: 10 | E131: NO | G131: 0
B132: 114 | C132: Wallace+Tiernan Holder V-Notch; Part No.: W2T12072 | D132: 10 | E132: NO | G132: 0
B133: 115 | C133: Wallace+Tiernan GSKT Seal; Part No.: W2T12130 | D133: 10 | E133: NO | G133: 0
B134: 116 | C134: Wallace+Tiernan V-Notch Plug; Part No.: W3T171244 | D134: 10 | E134: NO | G134: 0
B135: 117 | C135: Wallace+Tiernan FTG ORFC; Part No.: W2T12149 | D135: 10 | E135: NO | G135: 0
B136: 118 | C136: Wallace+Tiernan Stem Plug; Part No.: W2T19250 | D136: 10 | E136: NO | G136: 0
B137: 119 | C137: Wallace+Tiernan Vacuum Regulator; Part No.: W3T357496 | D137: 10 | E137: NO | G137: 0
B138: 120 | C138: Wallace+Tiernan Heater; Part No.: W2T11756 | D138: 10 | E138: NO | G138: 0
B139: 121 | C139: Wallace+Tiernan AAA 8167 GMS (4-20) Part No.: 231240/18 | D139: 10 | E139: NO | G139: 0
B140: 122 | C140: Level Switches for Chlorine plant, Model LS-7 Level switch, 20VA,120-240VAC | D140: 10 | E140: NO | G140: 0
B141: 123 | C141: Control board Evaporator E – 2000, W 3T163645 | D141: 1 | E141: NO | G141: 0
B142: 124 | C142: VGS-148-70/W/17/17-S-2F-L-G, Vacuum regulator, VGS-148, PN: 96681284 Type 148, 070-10003, Full vacuum regulator for chlorine gas dosing up to max 70, kg/h. Vacuum output connection for PVC pipe DN40. inlet valve, 70 kg/h, chlorine, Indication manometer, type of contact: min. contact (closing unit), medium: chlorine connection material: PVC tube: PE-hose 8/11 labelling Grundfos connection set nominal width: DN25 connection type: R1" standard parts 70-200KG/H, chlorine, 0.00 bar Material number: 96681284 4 68,248.00 272,992.00, 30 524 Liqufilt-200/G/L-R,G, Product Code: 96696435 | D142: 2 | E142: NO | G142: 0
B143: 125 | C143: Chlorine Sensor Controller Siemens-Wallace and Tierman, GMS plus W3T158771, Electronic Module 230V. 50/60 Hz, 14VA, Sensor 1/11. 2xPT1000 .3xmA - out | D143: 5 | E143: NO | G143: 0
B144: 126 | C144: Rotameter glass Chlorine-Kilograms per hour: 3 to 60, Man 329/565, Chlorine pounds per day: 150 to 3000, AAB 5427 | D144: 20 | E144: NO | G144: 0
C145: CHLORINATOR EQUIPMENT [WATSON MARLOW]
B146: 127 | C146: WATSON MARLOW 050.914N EMD 181129-202843 530 UN/REM IP66 DOSING PUMP ZA VIN 4BAR | D146: 30 | E146: NO | G146: =F146*D146 -> 0
B147: 128 | C147: WATSON MARLOW 520 REM 0-2 BAR 0-30 PSI ROTA | D147: 30 | E147: NO | G147: 0
B148: 129 | C148: WATSON MARLOW 520 REM 2-4 BAR 30-60 PSI ROTA | D148: 30 | E148: NO | G148: 0
B149: 130 | C149: WATSON MARLOW 520 REM 4-7 BAR 60-100 PSI ROTA | D149: 30 | E149: NO | G149: 0
B150: 131 | C150: WATSON MARLOW 050.716N.EHO 520 Bpn/REH PROFIBUS LOAD SURE DOSING PUMP S 313066 ZA VIN 4BAR | D150: 30 | E150: NO | G150: 0
C151: MISCELENEOUS
B152: 132 | C152: Switch-Tek Mini Float Switch PVDF Part No.: LH25-5201 | D152: 20 | E152: NO | G152: =F152*D152 -> 0
B153: 133 | C153: HACH Chlorine Analyzer CL 17; Part No.: 5440001 | D153: 15 | E153: NO | G153: 0
B154: 134 | C154: Swan pH Probes Part No.: A-87.120.200 | D154: 30 | E154: NO | G154: 0
B155: 135 | C155: 2/2 way Solenoid Valve Manufacturer Burkert Part Number 5281-00-A13,0BBMSGM84-5-024/DC-08 | D155: 12 | E155: NO | G155: 0
B156: 136 | C156: Timer Control Unit Manufacturer Burkert Part Number 1078-1-BBT/DC-B-1 | D156: 12 | E156: NO | G156: 0
B157: 137 | C157: Rotameter 160– 1600 l/hr Manufacturer TEC Part Number PT-11/1600/DR | D157: 12 | E157: NO | G157: 0
B158: 138 | C158: DANUBE Q06-150112-00 | D158: 9 | E158: NO | G158: 0
C159: SUB-TOTAL | G159: =SUM(#REF!) -> 
C161: Total for all Deliverables | D161: =G157 -> 0
C162: Disbursements at 12% of Total for all Deliverables | D162: =D161*0.12 -> 0
C163: Transport Costs at 8% | D163: =D161*0.08 -> 0
C164: SUBTOTAL before VAT | D164: =SUM(D161:D163) -> 0
C165: VAT (if applicable) | D165: =D164*0.15 -> 0
C166: FORM OF OFFER (for commercial evaluation purposes) | D166: =SUM(D164:D165) -> 0
C168: NOTE : Goods/services will be called-off as and when required by Rand Water after the award of the contract. Rand Water reserves the right not to acquire all the estimated quantities at once. Suppliers are therefore advised not to procure goods/services upfront and only procure upon the instruction of Rand Water.
